{"text_format":"1","workbook":"xlsx","n_sheets":1,"sheets":["2024"],"not_rendered":{"charts":0,"images":1,"macros":0,"external_links":0,"defined_names":1,"comments":0,"pivot_tables":0},"unopened":[],"bounds":{"document_bytes":16777216,"sheet_cells":100000,"rows_first":2000,"rows_last":500,"rows_between":2000,"halvings":0,"cell_chars":16384,"cell_head_chars":4096},"cells_cut":0,"cells_raw":0,"read":"whole","date_system":"1900"}

{"sheet":"2024","index":0,"n_rows":1092,"n_cols":19,"rows_kept":1092,"cut":false,"hidden":false,"merged":[[3,1,3,3],[4,1,4,3],[10,15,10,16],[10,6,11,6],[10,7,11,7],[10,8,11,8],[10,9,10,14],[5,1,5,3]]}
["letničky - mladé rostliny na multiplatech - ze semen a vegetativně množené - 2024"]
["objednávkový formulář - kupní smlouva mezi"]
["odběratel"]
["firma"]
["adresa"]
["IČ/DIČ"]
["dodavatel"]
["FLORENSIS HOLLAND B.V. zastoupený THOOLEN s.r.o., IČ 48950700, Rakovník"]
[null,null,null,null,null,null,null,"týden dodání",null,6,8,10,12,16,18]
["ceny jsou uváděny vč. licencí a dopravy do vaší firmy",null,null,null,null,null,null,"počet plat celkem",{"$f":"SUM(J10:O10)","v":0},{"$f":"SUM(J13:J1095)","v":0},{"$f":"SUM(K13:K1095)","v":0},0,0,0,0,null,null,{"$f":"SUM(R13:R1095)","v":0},{"$f":"SUM(S13:S1095)","v":0}]
[null,null,null,null,null,null,"mn. v 1buňce","pikírováno","licence","expedice",null,null,null,null,null,"CENA"]
["code","plato","gar.","Artikelbezeichnung","skupina","new",null,null,null,"7.2","21.2","6.3","20.3","17.4","1.5","rostlina","plato","za objed.","s DPH"]
["18083",288,284,"Ageratum houstonianum Aloha F1 Blue","semenáč",null,2,"N",null,null,null,null,null,null,null,2.93,833.52,{"$f":"Q13*(J13+K13+L13+M13+N13+O13)","v":0},{"$f":"R13*1.15","v":0}]
["18083",510,480,"Ageratum houstonianum Aloha F1 Blue","semenáč",null,2,"N",null,null,null,null,null,null,null,2.21,1061.9100000000001,{"$f":"Q14*(J14+K14+L14+M14+N14+O14)","v":0},0]
["42308",288,284,"Ageratum houstonianum Hapuna F1 Blue","semenáč",null,2,"N",null,null,null,null,null,null,null,3.18,902.98,0,0]
["42308",510,480,"Ageratum houstonianum Hapuna F1 Blue","semenáč",null,2,"N",null,null,null,null,null,null,null,2.4,1153.02,0,0]
["19841",128,126,"Ageratum houstonianum Patina Blue","řízek",null,1,"N","A",null,null,null,null,null,null,11.27,1420.44,0,0]
["36513",288,284,"Alternanthera brasiliana Purple Prince","semenáč",null,1,"N",null,null,null,null,null,null,null,7.1,2017.47,0,0]
["41654",128,126,"Angelonia angustifolia AngelDance Fuchsia Bicolour","řízek","new",1,"N","A",null,null,null,null,null,null,10.74,1353.28,0,0]
["41655",128,126,"Angelonia angustifolia AngelDance Violet Bicolour","řízek","new",1,"N","A",null,null,null,null,null,null,10.74,1353.28,0,0]
["32672",128,126,"Angelonia angustifolia Archangel™ Blue Bicolour","řízek",null,1,"N","A",null,null,null,null,null,null,10.38,1307.28,0,0]
["36842",128,126,"Angelonia angustifolia Archangel™ Coral","řízek",null,1,"N","A",null,null,null,null,null,null,10.38,1307.28,0,0]
["19587",128,126,"Angelonia angustifolia Archangel™ Deep Rose","řízek",null,1,"N","A",null,null,null,null,null,null,10.38,1307.28,0,0]
["36368",128,126,"Angelonia angustifolia Archangel™ Cherry Red","řízek",null,1,"N","A",null,null,null,null,null,null,10.38,1307.28,0,0]
["37688",128,126,"Angelonia angustifolia Archangel™ Purple","řízek","new",1,"N","A",null,null,null,null,null,null,10.38,1307.28,0,0]
["41482",128,126,"Angelonia angustifolia Archangel™ White Impr.","řízek","new",1,"N","A",null,null,null,null,null,null,10.38,1307.28,0,0]
["37864",288,284,"Angelonia angustifolia Serena® Blue","semenáč",null,1,"N",null,null,null,null,null,null,null,7.68,2180.2399999999998,0,0]
["37865",288,284,"Angelonia angustifolia Serena® Rose","semenáč",null,1,"N",null,null,null,null,null,null,null,7.68,2180.2399999999998,0,0]
["16899",288,284,"Angelonia angustifolia Serena® White","semenáč",null,1,"N",null,null,null,null,null,null,null,7.68,2180.2399999999998,0,0]
["34758",288,284,"Angelonia angustifolia Serenita® Mix","semenáč",null,1,"N",null,null,null,null,null,null,null,7.68,2180.2399999999998,0,0]
["34759",288,284,"Angelonia angustifolia Serenita® Pink","semenáč",null,1,"N",null,null,null,null,null,null,null,7.68,2180.2399999999998,0,0]
["32751",288,284,"Angelonia angustifolia Serenita® Purple","semenáč",null,1,"N",null,null,null,null,null,null,null,7.68,2180.2399999999998,0,0]
["37166",288,284,"Angelonia angustifolia Serenita® Rose","semenáč",null,1,"N",null,null,null,null,null,null,null,7.68,2180.2399999999998,0,0]
["34092",288,284,"Angelonia angustifolia Serenita® Sky Blue","semenáč",null,1,"N",null,null,null,null,null,null,null,7.68,2180.2399999999998,0,0]
["32752",288,284,"Angelonia angustifolia Serenita® White","semenáč",null,1,"N",null,null,null,null,null,null,null,7.68,2180.2399999999998,0,0]
["32127",128,126,"Antirrhinum majus Antirinca™ Copper Apricote","řízek",null,1,"Y","A",null,null,null,null,null,null,10.82,1362.94,0,0]
["32129",128,126,"Antirrhinum majus Antirinca™ Rose","řízek",null,1,"Y","A",null,null,null,null,null,null,10.82,1362.94,0,0]
["32130",128,126,"Antirrhinum majus Antirinca™ Yellow Maroon","řízek",null,1,"Y","A",null,null,null,null,null,null,10.82,1362.94,0,0]
["36904",288,284,"Antirrhinum majus Candy Tops F1 Mix","semenáč",null,1,"N",null,null,null,null,null,null,null,3.61,1025.31,0,0]
["36905",288,284,"Antirrhinum majus Candy Tops F1 Orange","semenáč",null,1,"N",null,null,null,null,null,null,null,3.61,1025.31,0,0]
["36916",288,284,"Antirrhinum majus Candy Tops F1 Red","semenáč",null,1,"N",null,null,null,null,null,null,null,3.61,1025.31,0,0]
["36906",288,284,"Antirrhinum majus Candy Tops F1 Rose","semenáč",null,1,"N",null,null,null,null,null,null,null,3.61,1025.31,0,0]
["36315",288,284,"Antirrhinum majus Candy Tops F1 White","semenáč",null,1,"N",null,null,null,null,null,null,null,3.61,1025.31,0,0]
["36907",288,284,"Antirrhinum majus Candy Tops F1 Yellow","semenáč",null,1,"N",null,null,null,null,null,null,null,3.61,1025.31,0,0]
["34079",288,284,"Antirrhinum majus Pirouette F1 Magenta","semenáč",null,1,"N",null,null,null,null,null,null,null,3.61,1025.31,0,0]
["34080",288,284,"Antirrhinum majus Pirouette F1 Pink","semenáč",null,1,"N",null,null,null,null,null,null,null,3.61,1025.31,0,0]
["34081",288,284,"Antirrhinum majus Pirouette F1 Red","semenáč",null,1,"N",null,null,null,null,null,null,null,3.61,1025.31,0,0]
["34082",288,284,"Antirrhinum majus Pirouette F1 Scarlet Orange","semenáč",null,1,"N",null,null,null,null,null,null,null,3.61,1025.31,0,0]
["34083",288,284,"Antirrhinum majus Pirouette F1 Yellow","semenáč",null,1,"N",null,null,null,null,null,null,null,3.61,1025.31,0,0]
["31964",288,280,"Antirrhinum majus Snapshot F1 Burgundy","semenáč",null,2,"N",null,null,null,null,null,null,null,2.48,695.69,0,0]
["18449",288,280,"Antirrhinum majus Snapshot F1 Mix","semenáč",null,2,"N",null,null,null,null,null,null,null,2.48,695.69,0,0]
["18449",510,480,"Antirrhinum majus Snapshot F1 Mix","semenáč",null,2,"N",null,null,null,null,null,null,null,2.08,998.82,0,0]
["18442",288,280,"Antirrhinum majus Snapshot F1 Orange","semenáč",null,2,"N",null,null,null,null,null,null,null,2.48,695.69,0,0]
["18443",288,280,"Antirrhinum majus Snapshot F1 Pink","semenáč",null,2,"N",null,null,null,null,null,null,null,2.48,695.69,0,0]
["31251",288,280,"Antirrhinum majus Snapshot F1 Purple","semenáč",null,2,"N",null,null,null,null,null,null,null,2.48,695.69,0,0]
["18445",288,280,"Antirrhinum majus Snapshot F1 Red","semenáč",null,2,"N",null,null,null,null,null,null,null,2.48,695.69,0,0]
["18446",288,280,"Antirrhinum majus Snapshot F1 Red Bicolour","semenáč",null,2,"N",null,null,null,null,null,null,null,2.48,695.69,0,0]
["18447",288,280,"Antirrhinum majus Snapshot F1 White","semenáč",null,2,"N",null,null,null,null,null,null,null,2.48,695.69,0,0]
["18448",288,280,"Antirrhinum majus Snapshot F1 Yellow","semenáč",null,2,"N",null,null,null,null,null,null,null,2.48,695.69,0,0]
["10536",288,280,"Antirrhinum majus Sonnet F1 Mix","semenáč",null,2,"N",null,null,null,null,null,null,null,3.23,903.18,0,0]
["10536",510,480,"Antirrhinum majus Sonnet F1 Mix","semenáč",null,2,"N",null,null,null,null,null,null,null,2.2000000000000002,1054.9000000000001,0,0]
["10532",288,280,"Antirrhinum majus Sonnet F1 Pink","semenáč",null,2,"N",null,null,null,null,null,null,null,3.23,903.18,0,0]
["10531",288,280,"Antirrhinum majus Sonnet F1 Scarlet Orange","semenáč",null,2,"N",null,null,null,null,null,null,null,3.23,903.18,0,0]
["10534",288,280,"Antirrhinum majus Sonnet F1 White","semenáč",null,2,"N",null,null,null,null,null,null,null,3.23,903.18,0,0]
["10535",288,280,"Antirrhinum majus Sonnet F1 Yellow","semenáč",null,2,"N",null,null,null,null,null,null,null,3.23,903.18,0,0]
["36268",128,126,"Argyranthemum frutescens Everest White","řízek",null,1,"N","A",null,null,null,null,null,null,8.73,1100.3,0,0]
["38046",128,126,"Argyranthemum frutescens Kilimanjaro White","řízek","new",1,"N","A",null,null,null,null,null,null,8.98,1131.1199999999999,0,0]
["42279",128,126,"Argyranthemum frutescens Madeira™ Compact Double Cherry","řízek","new",1,"N","A",null,null,null,null,null,null,9.66,1216.67,0,0]
["41459",128,126,"Argyranthemum frutescens Madeira™ Compact Red","řízek","new",1,"N","A",null,null,null,null,null,null,9.66,1216.67,0,0]
["38032",128,126,"Argyranthemum frutescens Madeira™ Compact White","řízek","new",1,"N","A",null,null,null,null,null,null,9.66,1216.67,0,0]
["41461",128,126,"Argyranthemum frutescens Madeira™ Compact Yellow","řízek","new",1,"N","A",null,null,null,null,null,null,9.66,1216.67,0,0]
["31678",128,126,"Argyranthemum frutescens Madeira™ Crested Hot Pink","řízek",null,1,"N","A",null,null,null,null,null,null,9.16,1154.1199999999999,0,0]
["31679",128,126,"Argyranthemum frutescens Madeira™ Crested Pink","řízek",null,1,"N","A",null,null,null,null,null,null,9.16,1154.1199999999999,0,0]
["35661",128,126,"Argyranthemum frutescens Madeira™ Crested White","řízek",null,1,"N","A",null,null,null,null,null,null,9.16,1154.1199999999999,0,0]
["17688",128,126,"Argyranthemum frutescens Madeira™ Deep Pink","řízek",null,1,"N","A",null,null,null,null,null,null,9.16,1154.1199999999999,0,0]
["32764",128,126,"Argyranthemum frutescens Madeira™ Double Red","řízek",null,1,"N","A",null,null,null,null,null,null,9.16,1154.1199999999999,0,0]
["17441",128,126,"Argyranthemum frutescens Madeira™ Double White","řízek",null,1,"N","A",null,null,null,null,null,null,9.16,1154.1199999999999,0,{"$f":"R77*1.15","v":0}]
["36271",128,126,"Argyranthemum frutescens Madeira™ Pink Halo","řízek",null,1,"N","A",null,null,null,null,null,null,9.16,1154.1199999999999,{"$f":"Q78*(J78+K78+L78+M78+N78+O78)","v":0},0]
["17443",128,126,"Argyranthemum frutescens Madeira™ Red","řízek",null,1,"N","A",null,null,null,null,null,null,9.16,1154.1199999999999,0,0]
["17445",128,126,"Argyranthemum frutescens Madeira™ White","řízek",null,1,"N","A",null,null,null,null,null,null,9.16,1154.1199999999999,0,0]
["17449",128,126,"Argyranthemum frutescens Madeira™ Yellow","řízek",null,1,"N","A",null,null,null,null,null,null,9.16,1154.1199999999999,0,0]
["20459",128,126,"Asteriscus maritimus Aurelia™ Yellow","řízek",null,1,"N","A",null,null,null,null,null,null,10.130000000000001,1276.93,0,0]
["12566",128,126,"Asteriscus maritimus Golden Dollar","řízek",null,1,"N",null,null,null,null,null,null,null,8.25,1039.1300000000001,0,0]
["36132",84,82,"Begonia boliviensis Bonaparte Night Fever Papaya","semenáč",null,1,"N",null,null,null,null,null,null,null,15.39,1262.3800000000001,0,0]
["36132",180,178,"Begonia boliviensis Bonaparte Night Fever Papaya","semenáč",null,1,"N",null,null,null,null,null,null,null,10.07,1791.76,0,0]
["38254",84,82,"Begonia boliviensis Bonaparte Night Fever Rosso","semenáč",null,1,"N",null,null,null,null,null,null,null,15.39,1262.3800000000001,0,0]
["38254",180,178,"Begonia boliviensis Bonaparte Night Fever Rosso","semenáč",null,1,"N",null,null,null,null,null,null,null,10.07,1791.76,0,0]
["19006",84,84,"Begonia boliviensis Glowing Embers™ Orange","řízek",null,1,"N","A",null,null,null,null,null,null,18.329999999999998,1539.87,0,0]
["37176",84,82,"Begonia boliviensis Groovy Mellow Yellow","semenáč",null,1,"N",null,null,null,null,null,null,null,15,1229.76,0,0]
["37176",180,178,"Begonia boliviensis Groovy Mellow Yellow","semenáč",null,1,"N",null,null,null,null,null,null,null,9.42,1676.74,0,0]
["37177",84,82,"Begonia boliviensis Groovy Orange","semenáč",null,1,"N",null,null,null,null,null,null,null,15,1229.76,0,0]
["37177",180,178,"Begonia boliviensis Groovy Orange","semenáč",null,1,"N",null,null,null,null,null,null,null,9.42,1676.74,0,0]
["37178",84,82,"Begonia boliviensis Groovy Red","semenáč",null,1,"N",null,null,null,null,null,null,null,15,1229.76,0,0]
["37178",180,178,"Begonia boliviensis Groovy Red","semenáč",null,1,"N",null,null,null,null,null,null,null,9.42,1676.74,0,0]
["37179",84,82,"Begonia boliviensis Groovy Rose","semenáč",null,1,"N",null,null,null,null,null,null,null,15,1229.76,0,0]
["37179",180,178,"Begonia boliviensis Groovy Rose","semenáč",null,1,"N",null,null,null,null,null,null,null,9.42,1676.74,0,0]
["37180",84,82,"Begonia boliviensis Groovy White","semenáč",null,1,"N",null,null,null,null,null,null,null,15,1229.76,0,0]
["37180",180,178,"Begonia boliviensis Groovy White","semenáč",null,1,"N",null,null,null,null,null,null,null,9.42,1676.74,0,0]
["32100",84,84,"Begonia richmondensis Pink","řízek",null,1,"N",null,null,null,null,null,null,null,13.1,1100.45,0,0]
["14640",128,126,"Begonia semperflorens Doublet® Pink","řízek",null,1,"N","A",null,null,null,null,null,null,12.63,1591.08,0,0]
["14642",128,126,"Begonia semperflorens Doublet® Red","řízek",null,1,"N","A",null,null,null,null,null,null,12.63,1591.08,0,0]
["14641",128,126,"Begonia semperflorens Doublet® Rose","řízek",null,1,"N","A",null,null,null,null,null,null,12.63,1591.08,0,0]
["14644",128,126,"Begonia semperflorens Doublet® White","řízek",null,1,"N","A",null,null,null,null,null,null,12.63,1591.08,0,0]
["37409",288,280,"Begonia semperflorens Juwel F1 Bicolour","semenáč",null,2,"N",null,null,null,null,null,null,null,2.52,704.89,0,0]
["37409",510,490,"Begonia semperflorens Juwel F1 Bicolour","semenáč",null,2,"N",null,null,null,null,null,null,null,1.86,913.4,0,0]
["13011",288,280,"Begonia semperflorens Juwel F1 Rose","semenáč",null,2,"N",null,null,null,null,null,null,null,2.52,704.89,0,0]
["13011",510,490,"Begonia semperflorens Juwel F1 Rose","semenáč",null,2,"N",null,null,null,null,null,null,null,1.86,913.4,0,0]
["13012",288,280,"Begonia semperflorens Juwel F1 Scarlet","semenáč",null,2,"N",null,null,null,null,null,null,null,2.52,704.89,0,0]
["13012",510,490,"Begonia semperflorens Juwel F1 Scarlet","semenáč",null,2,"N",null,null,null,null,null,null,null,1.86,913.4,0,0]
["19078",288,280,"Begonia semperflorens Juwel F1 White","semenáč",null,2,"N",null,null,null,null,null,null,null,2.52,704.89,0,0]
["19078",510,490,"Begonia semperflorens Juwel F1 White","semenáč",null,2,"N",null,null,null,null,null,null,null,1.86,913.4,0,0]
["10599",288,280,"Begonia semperflorens New Globe F1 Ducolour","semenáč",null,2,"N",null,null,null,null,null,null,null,2.52,704.89,0,0]
["10599",510,490,"Begonia semperflorens New Globe F1 Ducolour","semenáč",null,2,"N",null,null,null,null,null,null,null,1.86,913.4,0,0]
["16283",288,280,"Begonia semperflorens New Globe F1 Mix","semenáč",null,2,"N",null,null,null,null,null,null,null,2.52,704.89,0,0]
["16283",510,490,"Begonia semperflorens New Globe F1 Mix","semenáč",null,2,"N",null,null,null,null,null,null,null,1.86,913.4,0,0]
["38185",288,280,"Begonia semperflorens New Globe F1 Rose","semenáč",null,2,"N",null,null,null,null,null,null,null,2.52,704.89,0,0]
["38185",510,490,"Begonia semperflorens New Globe F1 Rose","semenáč",null,2,"N",null,null,null,null,null,null,null,1.86,913.4,0,0]
["38186",288,280,"Begonia semperflorens New Globe F1 Scarlet Impr.","semenáč","new",2,"N",null,null,null,null,null,null,null,2.52,704.89,0,0]
["38186",510,490,"Begonia semperflorens New Globe F1 Scarlet Impr.","semenáč","new",2,"N",null,null,null,null,null,null,null,1.86,913.4,0,0]
["43586",288,280,"Begonia semperflorens New Globe F1 White Impr.","semenáč","new",2,"N",null,null,null,null,null,null,null,2.52,704.89,0,0]
["43586",510,490,"Begonia semperflorens New Globe F1 White Impr.","semenáč","new",2,"N",null,null,null,null,null,null,null,1.86,913.4,0,0]
["37410",288,280,"Begonia semperflorens Quick F1 Bicolour","semenáč",null,2,"N",null,null,null,null,null,null,null,2.52,704.89,0,0]
["37410",510,490,"Begonia semperflorens Quick F1 Bicolour","semenáč",null,2,"N",null,null,null,null,null,null,null,1.86,913.4,0,0]
["10595",288,280,"Begonia semperflorens Quick F1 Mix","semenáč",null,2,"N",null,null,null,null,null,null,null,2.52,704.89,0,0]
["10595",510,490,"Begonia semperflorens Quick F1 Mix","semenáč",null,2,"N",null,null,null,null,null,null,null,1.86,913.4,0,0]
["10591",288,280,"Begonia semperflorens Quick F1 Pink","semenáč",null,2,"N",null,null,null,null,null,null,null,2.52,704.89,0,0]
["10591",510,490,"Begonia semperflorens Quick F1 Pink","semenáč",null,2,"N",null,null,null,null,null,null,null,1.86,913.4,0,0]
["10590",288,280,"Begonia semperflorens Quick F1 Red","semenáč",null,2,"N",null,null,null,null,null,null,null,2.52,704.89,0,0]
["10590",510,490,"Begonia semperflorens Quick F1 Red","semenáč",null,2,"N",null,null,null,null,null,null,null,1.86,913.4,0,0]
["10592",288,280,"Begonia semperflorens Quick F1 Rose","semenáč",null,2,"N",null,null,null,null,null,null,null,2.52,704.89,0,0]
["10592",510,490,"Begonia semperflorens Quick F1 Rose","semenáč",null,2,"N",null,null,null,null,null,null,null,1.86,913.4,0,0]
["10593",288,280,"Begonia semperflorens Quick F1 White","semenáč",null,2,"N",null,null,null,null,null,null,null,2.52,704.89,0,0]
["10593",510,490,"Begonia semperflorens Quick F1 White","semenáč",null,2,"N",null,null,null,null,null,null,null,1.86,913.4,0,0]
["10602",288,280,"Begonia semperflorens Supreme F1 Mix","semenáč",null,2,"N",null,null,null,null,null,null,null,2.52,704.89,0,0]
["10602",510,490,"Begonia semperflorens Supreme F1 Mix","semenáč",null,2,"N",null,null,null,null,null,null,null,1.86,913.4,0,0]
["32488",84,82,"Begonia tuberhybrida GO!Early F1 Bright Orange Bronze Leaf","semenáč",null,1,"N",null,null,null,null,null,null,null,8.67,711.3,0,0]
["32488",180,178,"Begonia tuberhybrida GO!Early F1 Bright Orange Bronze Leaf","semenáč",null,1,"N",null,null,null,null,null,null,null,5.61,997.71,0,0]
["16906",84,82,"Begonia tuberhybrida GO!Early F1 Deep Rose","semenáč",null,1,"N",null,null,null,null,null,null,null,8.67,711.3,0,0]
["16906",180,178,"Begonia tuberhybrida GO!Early F1 Deep Rose","semenáč",null,1,"N",null,null,null,null,null,null,null,5.61,997.71,0,0]
["37185",84,82,"Begonia tuberhybrida GO!Early F1 Fire","semenáč",null,1,"N",null,null,null,null,null,null,null,8.67,711.3,0,0]
["37185",180,178,"Begonia tuberhybrida GO!Early F1 Fire","semenáč",null,1,"N",null,null,null,null,null,null,null,5.61,997.71,0,{"$f":"R141*1.15","v":0}]
["30072",84,82,"Begonia tuberhybrida GO!Early F1 Cherry Bronze Leaf","semenáč",null,1,"N",null,null,null,null,null,null,null,8.67,711.3,{"$f":"Q142*(J142+K142+L142+M142+N142+O142)","v":0},0]
["30072",180,178,"Begonia tuberhybrida GO!Early F1 Cherry Bronze Leaf","semenáč",null,1,"N",null,null,null,null,null,null,null,5.61,997.71,0,0]
["10565",84,82,"Begonia tuberhybrida GO!Early F1 Mix","semenáč",null,1,"N",null,null,null,null,null,null,null,8.67,711.3,0,0]
["10565",180,178,"Begonia tuberhybrida GO!Early F1 Mix","semenáč",null,1,"N",null,null,null,null,null,null,null,5.61,997.71,0,0]
["16907",84,82,"Begonia tuberhybrida GO!Early F1 Orange","semenáč",null,1,"N",null,null,null,null,null,null,null,8.67,711.3,0,0]
["16907",180,178,"Begonia tuberhybrida GO!Early F1 Orange","semenáč",null,1,"N",null,null,null,null,null,null,null,5.61,997.71,0,0]
["17347",84,82,"Begonia tuberhybrida GO!Early F1 Pink Shades","semenáč",null,1,"N",null,null,null,null,null,null,null,8.67,711.3,0,0]
["17347",180,178,"Begonia tuberhybrida GO!Early F1 Pink Shades","semenáč",null,1,"N",null,null,null,null,null,null,null,5.61,997.71,0,0]
["32529",84,82,"Begonia tuberhybrida GO!Early F1 Salmon Bicolour","semenáč",null,1,"N",null,null,null,null,null,null,null,8.67,711.3,0,0]
["32529",180,178,"Begonia tuberhybrida GO!Early F1 Salmon Bicolour","semenáč",null,1,"N",null,null,null,null,null,null,null,5.61,997.71,0,0]
["16909",84,82,"Begonia tuberhybrida GO!Early F1 Scarlet Red","semenáč",null,1,"N",null,null,null,null,null,null,null,8.67,711.3,0,0]
["16909",180,178,"Begonia tuberhybrida GO!Early F1 Scarlet Red","semenáč",null,1,"N",null,null,null,null,null,null,null,5.61,997.71,0,0]
["31940",84,82,"Begonia tuberhybrida GO!Early F1 White","semenáč",null,1,"N",null,null,null,null,null,null,null,8.67,711.3,0,0]
["31940",180,178,"Begonia tuberhybrida GO!Early F1 White","semenáč",null,1,"N",null,null,null,null,null,null,null,5.61,997.71,0,0]
["16891",84,82,"Begonia tuberhybrida GO!Early F1 Yellow","semenáč",null,1,"N",null,null,null,null,null,null,null,8.67,711.3,0,0]
["16891",180,178,"Begonia tuberhybrida GO!Early F1 Yellow","semenáč",null,1,"N",null,null,null,null,null,null,null,5.61,997.71,0,0]
["10568",84,82,"Begonia tuberhybrida Illumination® F1 Apricot Shades","semenáč",null,1,"N",null,null,null,null,null,null,null,8.82,723.57,0,0]
["18450",84,82,"Begonia tuberhybrida Illumination® F1 Golden Picotee","semenáč",null,1,"N",null,null,null,null,null,null,null,8.82,723.57,0,0]
["32437",84,82,"Begonia tuberhybrida Illumination® F1 Lemon","semenáč",null,1,"N",null,null,null,null,null,null,null,8.82,723.57,0,0]
["10570",84,82,"Begonia tuberhybrida Illumination® F1 Light Pink","semenáč",null,1,"N",null,null,null,null,null,null,null,8.82,723.57,0,0]
["13840",84,82,"Begonia tuberhybrida Illumination® F1 Mix","semenáč",null,1,"N",null,null,null,null,null,null,null,8.82,723.57,0,0]
["13840",180,178,"Begonia tuberhybrida Illumination® F1 Mix","semenáč",null,1,"N",null,null,null,null,null,null,null,6.54,1164.06,0,0]
["10569",84,82,"Begonia tuberhybrida Illumination® F1 Orange","semenáč",null,1,"N",null,null,null,null,null,null,null,8.82,723.57,0,0]
["13260",84,82,"Begonia tuberhybrida Illumination® F1 Rose","semenáč",null,1,"N",null,null,null,null,null,null,null,8.82,723.57,0,0]
["16208",84,82,"Begonia tuberhybrida Illumination® F1 Scarlet","semenáč",null,1,"N",null,null,null,null,null,null,null,8.82,723.57,0,0]
["10571",84,82,"Begonia tuberhybrida Illumination® F1 White","semenáč",null,1,"N",null,null,null,null,null,null,null,8.82,723.57,0,0]
["15957",84,82,"Begonia tuberhybrida Nonstop® Mocca F1 Scarlet","semenáč",null,1,"N",null,null,null,null,null,null,null,8.9,729.56,0,0]
["15957",180,178,"Begonia tuberhybrida Nonstop® Mocca F1 Scarlet","semenáč",null,1,"N",null,null,null,null,null,null,null,5.71,1015.91,0,0]
["15956",84,82,"Begonia tuberhybrida Nonstop® Mocca F1 White","semenáč",null,1,"N",null,null,null,null,null,null,null,8.9,729.56,0,0]
["15956",180,178,"Begonia tuberhybrida Nonstop® Mocca F1 White","semenáč",null,1,"N",null,null,null,null,null,null,null,5.71,1015.91,0,0]
["15955",84,82,"Begonia tuberhybrida Nonstop® Mocca F1 Yellow","semenáč",null,1,"N",null,null,null,null,null,null,null,8.9,729.56,0,0]
["15955",180,178,"Begonia tuberhybrida Nonstop® Mocca F1 Yellow","semenáč",null,1,"N",null,null,null,null,null,null,null,5.71,1015.91,0,0]
["18585",84,82,"Begonia x hybrida BIG™ Red Bronze Leaf","semenáč",null,1,"N",null,null,null,null,null,null,null,12.02,985.49,0,0]
["18585",180,178,"Begonia x hybrida BIG™ Red Bronze Leaf","semenáč",null,1,"N",null,null,null,null,null,null,null,8.6999999999999993,1549.39,0,0]
["16610",84,82,"Begonia x hybrida BIG™ Red Green Leaf","semenáč",null,1,"N",null,null,null,null,null,null,null,12.02,985.49,0,0]
["16610",180,178,"Begonia x hybrida BIG™ Red Green Leaf","semenáč",null,1,"N",null,null,null,null,null,null,null,8.6999999999999993,1549.39,0,0]
["16611",84,82,"Begonia x hybrida BIG™ Rose Bronze Leaf","semenáč",null,1,"N",null,null,null,null,null,null,null,12.02,985.49,0,0]
["16611",180,178,"Begonia x hybrida BIG™ Rose Bronze Leaf","semenáč",null,1,"N",null,null,null,null,null,null,null,8.6999999999999993,1549.39,0,0]
["32530",84,82,"Begonia x hybrida BIG™ Rose Green Leaf","semenáč",null,1,"N",null,null,null,null,null,null,null,12.02,985.49,0,0]
["32530",180,178,"Begonia x hybrida BIG™ Rose Green Leaf","semenáč",null,1,"N",null,null,null,null,null,null,null,8.6999999999999993,1549.39,0,0]
["37187",84,82,"Begonia x hybrida BIG™ White Green Leaf","semenáč",null,1,"N",null,null,null,null,null,null,null,12.02,985.49,0,0]
["37187",180,178,"Begonia x hybrida BIG™ White Green Leaf","semenáč",null,1,"N",null,null,null,null,null,null,null,8.6999999999999993,1549.39,0,0]
["14512",84,82,"Begonia x hybrida Dragon Wing® Pink","semenáč",null,1,"N",null,null,null,null,null,null,null,12.28,1006.75,0,0]
["14512",180,178,"Begonia x hybrida Dragon Wing® Pink","semenáč",null,1,"N",null,null,null,null,null,null,null,8.61,1533.14,0,0]
["14512",288,284,"Begonia x hybrida Dragon Wing® Pink","semenáč",null,1,"N",null,null,null,null,null,null,null,6.09,1729.26,0,0]
["12986",84,82,"Begonia x hybrida Dragon Wing® Red","semenáč",null,1,"N",null,null,null,null,null,null,null,12.28,1006.75,0,0]
["12986",180,178,"Begonia x hybrida Dragon Wing® Red","semenáč",null,1,"N",null,null,null,null,null,null,null,8.61,1533.14,0,0]
["12986",288,284,"Begonia x hybrida Dragon Wing® Red","semenáč",null,1,"N",null,null,null,null,null,null,null,6.09,1729.26,0,0]
["36637",84,82,"Begonia x hybrida Funky® Orange","semenáč",null,1,"N",null,null,null,null,null,null,null,15,1229.76,0,0]
["36637",180,178,"Begonia x hybrida Funky® Orange","semenáč",null,1,"N",null,null,null,null,null,null,null,9.42,1676.74,0,0]
["34078",84,82,"Begonia x hybrida Funky® Pink","semenáč",null,1,"N",null,null,null,null,null,null,null,15,1229.76,0,0]
["34078",180,178,"Begonia x hybrida Funky® Pink","semenáč",null,1,"N",null,null,null,null,null,null,null,9.42,1676.74,0,0]
["36639",84,82,"Begonia x hybrida Funky® White","semenáč",null,1,"N",null,null,null,null,null,null,null,15,1229.76,0,0]
["36639",180,178,"Begonia x hybrida Funky® White","semenáč",null,1,"N",null,null,null,null,null,null,null,9.42,1676.74,0,0]
["32896",84,82,"Begonia x hybrida Megawatt™ Pink Bronze Leaf","semenáč",null,1,"N",null,null,null,null,null,null,null,11.35,930.71,0,0]
["32896",180,178,"Begonia x hybrida Megawatt™ Pink Bronze Leaf","semenáč",null,1,"N",null,null,null,null,null,null,null,8.1999999999999993,1459.71,0,0]
["35061",84,82,"Begonia x hybrida Megawatt™ Pink Green Leaf","semenáč",null,1,"N",null,null,null,null,null,null,null,11.35,930.71,0,0]
["35061",180,178,"Begonia x hybrida Megawatt™ Pink Green Leaf","semenáč",null,1,"N",null,null,null,null,null,null,null,8.1999999999999993,1459.71,0,0]
["32955",84,82,"Begonia x hybrida Megawatt™ Red Bronze Leaf","semenáč",null,1,"N",null,null,null,null,null,null,null,11.35,930.71,0,0]
["32955",180,178,"Begonia x hybrida Megawatt™ Red Bronze Leaf","semenáč",null,1,"N",null,null,null,null,null,null,null,8.1999999999999993,1459.71,0,0]
["35062",84,82,"Begonia x hybrida Megawatt™ Red Green Leaf","semenáč",null,1,"N",null,null,null,null,null,null,null,11.35,930.71,0,0]
["35062",180,178,"Begonia x hybrida Megawatt™ Red Green Leaf","semenáč",null,1,"N",null,null,null,null,null,null,null,8.1999999999999993,1459.71,0,0]
["32898",84,82,"Begonia x hybrida Megawatt™ Rose Bronze Leaf","semenáč",null,1,"N",null,null,null,null,null,null,null,11.35,930.71,0,0]
["32898",180,178,"Begonia x hybrida Megawatt™ Rose Bronze Leaf","semenáč",null,1,"N",null,null,null,null,null,null,null,8.1999999999999993,1459.71,0,{"$f":"R205*1.15","v":0}]
["35063",84,82,"Begonia x hybrida Megawatt™ Rose Green Leaf","semenáč",null,1,"N",null,null,null,null,null,null,null,11.35,930.71,{"$f":"Q206*(J206+K206+L206+M206+N206+O206)","v":0},0]
["35063",180,178,"Begonia x hybrida Megawatt™ Rose Green Leaf","semenáč",null,1,"N",null,null,null,null,null,null,null,8.1999999999999993,1459.71,0,0]
["37680",84,82,"Begonia x hybrida Megawatt™ White Green Leaf","semenáč",null,1,"N",null,null,null,null,null,null,null,11.35,930.71,0,0]
["37680",180,178,"Begonia x hybrida Megawatt™ White Green Leaf","semenáč",null,1,"N",null,null,null,null,null,null,null,8.1999999999999993,1459.71,0,0]
["36843",180,178,"Bidens ferulifolia Bee Happy™ Orange","řízek",null,1,"N","A",null,null,null,null,null,null,8.85,1575.38,0,0]
["43090",128,126,"Bidens ferulifolia Bee-Buddies MixMasters® Sunset (Duo Mix 02)","řízek","new",2,"N","A",null,null,null,null,null,null,18.13,2284.71,0,0]
["32377",180,178,"Bidens ferulifolia BeeDance® Painted Red","řízek",null,1,"N","A",null,null,null,null,null,null,9.76,1737.17,0,0]
["34706",180,178,"Bidens ferulifolia Blazing™ Glory","řízek",null,1,"N","A",null,null,null,null,null,null,9.4,1672.85,0,0]
["31658",180,178,"Bidens ferulifolia Gold Strike Yellow","řízek",null,1,"N","A",null,null,null,null,null,null,8.2200000000000006,1463.61,0,0]
["34809",180,178,"Bidens ferulifolia Golden Empire™ Gold","řízek",null,1,"N","A",null,null,null,null,null,null,9.4,1672.85,0,0]
["19479",180,178,"Bidens ferulifolia Charm™ Yellow","řízek",null,1,"N","A",null,null,null,null,null,null,8.2200000000000006,1463.61,0,0]
["32938",180,178,"Bidens ferulifolia Sixbi Gold","řízek",null,1,"N","A",null,null,null,null,null,null,8.85,1575.38,0,0]
["38035",180,178,"Bidens ferulifolia Sixbi Smile","řízek","new",1,"N","A",null,null,null,null,null,null,8.85,1575.38,0,0]
["31532",180,178,"Bidens ferulifolia Yellow Sunshine™ Yellow","řízek",null,1,"N","A",null,null,null,null,null,null,8.85,1575.38,0,0]
["37810",84,84,"Bracteantha bracteata Crispy Magenta","řízek",null,1,"N","A",null,null,null,null,null,null,13.81,1159.6400000000001,0,0]
["37811",84,84,"Bracteantha bracteata Crispy Orange","řízek",null,1,"N","A",null,null,null,null,null,null,13.81,1159.6400000000001,0,0]
["37812",84,84,"Bracteantha bracteata Crispy Pink","řízek",null,1,"N","A",null,null,null,null,null,null,13.81,1159.6400000000001,0,0]
["37813",84,84,"Bracteantha bracteata Crispy Red","řízek",null,1,"N","A",null,null,null,null,null,null,13.81,1159.6400000000001,0,0]
["37814",84,84,"Bracteantha bracteata Crispy White","řízek",null,1,"N","A",null,null,null,null,null,null,13.81,1159.6400000000001,0,0]
["37815",84,84,"Bracteantha bracteata Crispy Yellow","řízek",null,1,"N","A",null,null,null,null,null,null,13.81,1159.6400000000001,0,0]
["36086",84,84,"Bracteantha bracteata Granvia® Gold","řízek",null,1,"N","A",null,null,null,null,null,null,15.83,1330.13,0,0]
["19400",128,126,"Brachyscome multifida Brasco™ Violet","řízek",null,2,"Y","A",null,null,null,null,null,null,11.11,1399.74,0,0]
["19400",180,178,"Brachyscome multifida Brasco™ Violet","řízek",null,1,"Y","A",null,null,null,null,null,null,9.01,1603.32,0,0]
["19474",128,126,"Brachyscome multifida Delight Magenta","řízek",null,2,"N","A",null,null,null,null,null,null,11.84,1491.73,0,0]
["19474",180,178,"Brachyscome multifida Delight Magenta","řízek",null,1,"N","A",null,null,null,null,null,null,9.61,1711.18,0,0]
["16002",128,126,"Brachyscome multifida Delight Mauve","řízek",null,2,"Y","A",null,null,null,null,null,null,11.35,1430.09,0,0]
["16002",180,178,"Brachyscome multifida Delight Mauve","řízek",null,1,"Y","A",null,null,null,null,null,null,9.01,1603.32,0,0]
["41463",180,178,"Brachyscome multifida Fresco™ Bright Pink","řízek","new",1,"N","A",null,null,null,null,null,null,9.01,1603.32,0,0]
["34709",180,178,"Brachyscome multifida Fresco™ Candy","řízek",null,1,"N","A",null,null,null,null,null,null,9.01,1603.32,0,0]
["34710",180,178,"Brachyscome multifida Fresco™ Purple","řízek",null,1,"Y","A",null,null,null,null,null,null,9.01,1603.32,0,0]
["33951",128,126,"Brachyscome multifida Surdaisy® White","řízek",null,2,"N","A",null,null,null,null,null,null,11.46,1443.89,0,0]
["33951",180,178,"Brachyscome multifida Surdaisy® White","řízek",null,1,"N","A",null,null,null,null,null,null,9.1199999999999992,1622.81,0,0]
["19599",128,126,"Calibrachoa parviflora Cabaret® Bright Red","řízek",null,1,"Y","A",null,null,null,null,null,null,10.94,1378.58,0,0]
["19599",180,178,"Calibrachoa parviflora Cabaret® Bright Red","řízek",null,1,"Y","A",null,null,null,null,null,null,9.19,1635.81,0,0]
["31786",128,126,"Calibrachoa parviflora Cabaret® Compact Lemon","řízek",null,1,"N","A",null,null,null,null,null,null,11.32,1426.41,0,0]
["31591",128,126,"Calibrachoa parviflora Cabaret® Compact Orange Kiss","řízek",null,1,"N","A",null,null,null,null,null,null,11.32,1426.41,0,0]
["17689",128,126,"Calibrachoa parviflora Cabaret® Dark Blue","řízek",null,1,"Y","A",null,null,null,null,null,null,10.94,1378.58,0,0]
["17689",180,178,"Calibrachoa parviflora Cabaret® Dark Blue","řízek",null,1,"Y","A",null,null,null,null,null,null,9.19,1635.81,0,0]
["31425",128,126,"Calibrachoa parviflora Cabaret® Dark Rose","řízek",null,1,"Y","A",null,null,null,null,null,null,10.94,1378.58,0,0]
["31425",180,178,"Calibrachoa parviflora Cabaret® Dark Rose","řízek",null,1,"Y","A",null,null,null,null,null,null,9.19,1635.81,0,0]
["37924",128,126,"Calibrachoa parviflora Cabaret® Early Blue","řízek","new",1,"Y","A",null,null,null,null,null,null,10.94,1378.58,0,0]
["37924",180,178,"Calibrachoa parviflora Cabaret® Early Blue","řízek","new",1,"Y","A",null,null,null,null,null,null,9.19,1635.81,0,0]
["36860",128,126,"Calibrachoa parviflora Cabaret® Early Bright Red","řízek",null,1,"Y","A",null,null,null,null,null,null,10.94,1378.58,0,0]
["36860",180,178,"Calibrachoa parviflora Cabaret® Early Bright Red","řízek",null,1,"Y","A",null,null,null,null,null,null,9.19,1635.81,0,0]
["37392",128,126,"Calibrachoa parviflora Cabaret® Early Bright Yellow","řízek",null,1,"Y","A",null,null,null,null,null,null,10.94,1378.58,0,0]
["37392",180,178,"Calibrachoa parviflora Cabaret® Early Bright Yellow","řízek",null,1,"Y","A",null,null,null,null,null,null,9.19,1635.81,0,0]
["37935",128,126,"Calibrachoa parviflora Cabaret® Early Compact White","řízek",null,1,"Y","A",null,null,null,null,null,null,10.94,1378.58,0,0]
["37935",180,178,"Calibrachoa parviflora Cabaret® Early Compact White","řízek",null,1,"Y","A",null,null,null,null,null,null,9.19,1635.81,0,0]
["35883",128,126,"Calibrachoa parviflora Cabaret® Early Deep Blue","řízek",null,1,"Y","A",null,null,null,null,null,null,10.94,1378.58,0,0]
["35883",180,178,"Calibrachoa parviflora Cabaret® Early Deep Blue","řízek",null,1,"Y","A",null,null,null,null,null,null,9.19,1635.81,0,0]
["36312",128,126,"Calibrachoa parviflora Cabaret® Early Deep Yellow","řízek",null,1,"Y","A",null,null,null,null,null,null,10.94,1378.58,0,0]
["36312",180,178,"Calibrachoa parviflora Cabaret® Early Deep Yellow","řízek",null,1,"Y","A",null,null,null,null,null,null,9.19,1635.81,0,0]
["32374",128,126,"Calibrachoa parviflora Cabaret® Early Light Pink","řízek",null,1,"Y","A",null,null,null,null,null,null,10.94,1378.58,0,0]
["32374",180,178,"Calibrachoa parviflora Cabaret® Early Light Pink","řízek",null,1,"Y","A",null,null,null,null,null,null,9.19,1635.81,0,0]
["36873",128,126,"Calibrachoa parviflora Cabaret® Early Light Pink Eye","řízek",null,1,"Y","A",null,null,null,null,null,null,10.94,1378.58,0,0]
["36873",180,178,"Calibrachoa parviflora Cabaret® Early Light Pink Eye","řízek",null,1,"Y","A",null,null,null,null,null,null,9.19,1635.81,0,0]
["35893",128,126,"Calibrachoa parviflora Cabaret® Early Neon Rose","řízek",null,1,"Y","A",null,null,null,null,null,null,10.94,1378.58,0,0]
["35893",180,178,"Calibrachoa parviflora Cabaret® Early Neon Rose","řízek",null,1,"Y","A",null,null,null,null,null,null,9.19,1635.81,0,0]
["36864",128,126,"Calibrachoa parviflora Cabaret® Early Orange","řízek",null,1,"Y","A",null,null,null,null,null,null,10.94,1378.58,0,0]
["36864",180,178,"Calibrachoa parviflora Cabaret® Early Orange","řízek",null,1,"Y","A",null,null,null,null,null,null,9.19,1635.81,0,0]
["35890",128,126,"Calibrachoa parviflora Cabaret® Early Pink","řízek",null,1,"Y","A",null,null,null,null,null,null,10.94,1378.58,0,0]
["35890",180,178,"Calibrachoa parviflora Cabaret® Early Pink","řízek",null,1,"Y","A",null,null,null,null,null,null,9.19,1635.81,0,0]
["37926",128,126,"Calibrachoa parviflora Cabaret® Early Pink Impr.","řízek","new",1,"Y","A",null,null,null,null,null,null,10.94,1378.58,0,0]
["37926",180,178,"Calibrachoa parviflora Cabaret® Early Pink Impr.","řízek","new",1,"Y","A",null,null,null,null,null,null,9.19,1635.81,0,{"$f":"R269*1.15","v":0}]
["32653",128,126,"Calibrachoa parviflora Cabaret® Early Scarlet","řízek",null,1,"Y","A",null,null,null,null,null,null,10.94,1378.58,{"$f":"Q270*(J270+K270+L270+M270+N270+O270)","v":0},0]
["32653",180,178,"Calibrachoa parviflora Cabaret® Early Scarlet","řízek",null,1,"Y","A",null,null,null,null,null,null,9.19,1635.81,0,0]
["35889",128,126,"Calibrachoa parviflora Cabaret® Good Night Kiss","řízek",null,1,"Y","A",null,null,null,null,null,null,10.94,1378.58,0,0]
["35889",180,178,"Calibrachoa parviflora Cabaret® Good Night Kiss","řízek",null,1,"Y","A",null,null,null,null,null,null,9.19,1635.81,0,0]
["36440",84,82,"Calibrachoa parviflora Cabaret® MixMasters® Burlesque","řízek",null,3,"Y","A",null,null,null,null,null,null,22.51,1845.5,0,0]
["31199",84,82,"Calibrachoa parviflora Cabaret® MixMasters® Cafe de Paris","řízek",null,3,"Y","A",null,null,null,null,null,null,22.51,1845.5,0,0]
["43097",84,82,"Calibrachoa parviflora Cabaret® MixMasters® Candy House impr. 23MC03","řízek","new",3,"Y","A",null,null,null,null,null,null,22.51,1845.5,0,0]
["20173",84,82,"Calibrachoa parviflora Cabaret® MixMasters® Copacabana","řízek",null,3,"Y","A",null,null,null,null,null,null,22.51,1845.5,0,0]
["43101",84,82,"Calibrachoa parviflora Cabaret® MixMasters® Copacabana Impr.","řízek","new",3,"Y","A",null,null,null,null,null,null,22.51,1845.5,0,0]
["37304",84,82,"Calibrachoa parviflora Cabaret® MixMasters® Firework","řízek",null,3,"Y","A",null,null,null,null,null,null,22.51,1845.5,0,0]
["37753",84,82,"Calibrachoa parviflora Cabaret® MixMasters® Paradise Sunrise 23MC07","řízek","new",3,"Y","A",null,null,null,null,null,null,22.51,1845.5,0,0]
["34124",84,82,"Calibrachoa parviflora Cabaret® MixMasters® Pink Paradise","řízek",null,3,"Y","A",null,null,null,null,null,null,22.51,1845.5,0,0]
["37309",84,82,"Calibrachoa parviflora Cabaret® MixMasters® Pink Paradise Eyes","řízek",null,3,"Y","A",null,null,null,null,null,null,22.51,1845.5,0,0]
["20172",84,82,"Calibrachoa parviflora Cabaret® MixMasters® Tropicana","řízek",null,3,"Y","A",null,null,null,null,null,null,22.51,1845.5,0,0]
["37311",84,82,"Calibrachoa parviflora Cabaret® MixMasters® Vegas Night Light","řízek",null,3,"Y","A",null,null,null,null,null,null,22.51,1845.5,0,0]
["32242",84,82,"Calibrachoa parviflora Cabaret® MixMasters® Voltaire","řízek",null,3,"Y","A",null,null,null,null,null,null,22.51,1845.5,0,0]
["19598",128,126,"Calibrachoa parviflora Cabaret® Pure Yellow","řízek",null,1,"Y","A",null,null,null,null,null,null,10.94,1378.58,0,0]
["19598",180,178,"Calibrachoa parviflora Cabaret® Pure Yellow","řízek",null,1,"Y","A",null,null,null,null,null,null,9.19,1635.81,0,0]
["36869",128,126,"Calibrachoa parviflora Cabaret® Special Apricot","řízek",null,1,"Y","A",null,null,null,null,null,null,10.94,1378.58,0,0]
["36869",180,178,"Calibrachoa parviflora Cabaret® Special Apricot","řízek",null,1,"Y","A",null,null,null,null,null,null,9.19,1635.81,0,0]
["36861",128,126,"Calibrachoa parviflora Cabaret® Special Bumble Bee Blue","řízek",null,1,"Y","A",null,null,null,null,null,null,10.94,1378.58,0,0]
["36861",180,178,"Calibrachoa parviflora Cabaret® Special Bumble Bee Blue","řízek",null,1,"Y","A",null,null,null,null,null,null,9.19,1635.81,0,0]
["37933",128,126,"Calibrachoa parviflora Cabaret® Special Bumble Bee Rose","řízek","new",1,"Y","A",null,null,null,null,null,null,10.94,1378.58,0,0]
["37933",180,178,"Calibrachoa parviflora Cabaret® Special Bumble Bee Rose","řízek","new",1,"Y","A",null,null,null,null,null,null,9.19,1635.81,0,0]
["36870",128,126,"Calibrachoa parviflora Cabaret® Special Diva Orange","řízek",null,1,"Y","A",null,null,null,null,null,null,10.94,1378.58,0,0]
["36870",180,178,"Calibrachoa parviflora Cabaret® Special Diva Orange","řízek",null,1,"Y","A",null,null,null,null,null,null,9.19,1635.81,0,0]
["37401",128,126,"Calibrachoa parviflora Cabaret® Special Frosty Lemon","řízek","new",1,"Y","A",null,null,null,null,null,null,10.94,1378.58,0,0]
["37401",180,178,"Calibrachoa parviflora Cabaret® Special Frosty Lemon","řízek","new",1,"Y","A",null,null,null,null,null,null,9.19,1635.81,0,0]
["37390",128,126,"Calibrachoa parviflora Cabaret® Special Red Kiss","řízek",null,1,"Y","A",null,null,null,null,null,null,10.94,1378.58,0,0]
["37390",180,178,"Calibrachoa parviflora Cabaret® Special Red Kiss","řízek",null,1,"Y","A",null,null,null,null,null,null,9.19,1635.81,0,0]
["31435",128,126,"Calibrachoa parviflora Cabaret® White","řízek",null,1,"Y","A",null,null,null,null,null,null,10.94,1378.58,0,0]
["31435",180,178,"Calibrachoa parviflora Cabaret® White","řízek",null,1,"Y","A",null,null,null,null,null,null,9.19,1635.81,0,0]
["32723",128,126,"Calibrachoa parviflora Can-Can® Rosies Apricote","řízek",null,1,"Y","A",null,null,null,null,null,null,11.57,1458.15,0,0]
["37007",128,126,"Calibrachoa parviflora Can-Can® Rosies Blue","řízek",null,1,"Y","A",null,null,null,null,null,null,11.57,1458.15,0,0]
["30508",128,126,"Calibrachoa parviflora Can-Can® Rosies Light Yellow","řízek",null,1,"Y","A",null,null,null,null,null,null,11.57,1458.15,0,0]
["37006",128,126,"Calibrachoa parviflora Can-Can® Rosies Magenta","řízek",null,1,"Y","A",null,null,null,null,null,null,11.57,1458.15,0,0]
["37005",128,126,"Calibrachoa parviflora Can-Can® Rosies Pink","řízek",null,1,"Y","A",null,null,null,null,null,null,11.57,1458.15,0,0]
["30505",128,126,"Calibrachoa parviflora Can-Can® Rosies Pink Vein","řízek",null,1,"Y","A",null,null,null,null,null,null,11.57,1458.15,0,0]
["32724",128,126,"Calibrachoa parviflora Can-Can® Rosies Sky Blue","řízek",null,1,"Y","A",null,null,null,null,null,null,11.57,1458.15,0,0]
["37902",128,126,"Calibrachoa parviflora Can-Can® Rosies White Impr.","řízek","new",1,"Y","A",null,null,null,null,null,null,11.57,1458.15,0,0]
["35372",128,126,"Calibrachoa parviflora Can-Can® Rosies Yellow","řízek",null,1,"Y","A",null,null,null,null,null,null,11.57,1458.15,0,0]
["34067",128,126,"Calibrachoa parviflora Conga™ Blue","řízek",null,1,"N","A",null,null,null,null,null,null,11.32,1426.41,0,0]
["37463",128,126,"Calibrachoa parviflora Conga™ Lavender","řízek","new",1,"N","A",null,null,null,null,null,null,11.32,1426.41,0,0]
["36874",128,126,"Calibrachoa parviflora Conga™ Orange Star","řízek",null,1,"N","A",null,null,null,null,null,null,11.32,1426.41,0,0]
["36875",128,126,"Calibrachoa parviflora Conga™ Pink Star","řízek",null,1,"N","A",null,null,null,null,null,null,11.32,1426.41,0,0]
["37404",128,126,"Calibrachoa parviflora Conga™ Rose","řízek",null,1,"N","A",null,null,null,null,null,null,11.32,1426.41,0,0]
["32666",128,126,"Calibrachoa parviflora Conga™ White","řízek",null,1,"N","A",null,null,null,null,null,null,11.32,1426.41,0,0]
["32667",128,126,"Calibrachoa parviflora Conga™ Yellow","řízek",null,1,"N","A",null,null,null,null,null,null,11.32,1426.41,0,0]
["32946",128,126,"Calibrachoa parviflora Chameleon® Blueberry Scone","řízek",null,1,"Y","A",null,null,null,null,null,null,11.94,1504.15,0,0]
["32427",128,126,"Calibrachoa parviflora Chameleon® Double Pink Yellow","řízek",null,1,"Y","A",null,null,null,null,null,null,11.94,1504.15,0,0]
["32940",128,126,"Calibrachoa parviflora Chameleon® Lavender Sorbet","řízek",null,1,"Y","A",null,null,null,null,null,null,11.94,1504.15,0,0]
["32425",128,126,"Calibrachoa parviflora Chameleon® Sunshine Berry","řízek",null,1,"Y","A",null,null,null,null,null,null,11.94,1504.15,0,0]
["36504",180,178,"Calocephalus brownii Electra Compact Silver","řízek",null,2,"Y","A",null,null,null,null,null,null,7.43,1321.96,0,0]
["32094",180,178,"Calocephalus brownii Electra Silver","řízek",null,2,"Y","A",null,null,null,null,null,null,7.43,1321.96,0,0]
["15018",180,178,"Calocephalus brownii Challenge","řízek",null,2,"Y","A",null,null,null,null,null,null,6.88,1223.8399999999999,0,0]
["32725",180,178,"Calocephalus brownii Challenge Compact Silver","řízek",null,2,"Y","A",null,null,null,null,null,null,6.88,1223.8399999999999,0,0]
["32352",288,284,"Calocephalus brownii Silver Treasure","semenáč",null,6,"Y",null,null,null,null,null,null,null,4.45,1262.73,0,0]
["30016",288,284,"Catharanthus roseus Mediterranean XP Mix","semenáč",null,1,"N",null,null,null,null,null,null,null,4.3099999999999996,1224.3699999999999,0,0]
["18478",288,284,"Catharanthus roseus Titan® F1 Apricot","semenáč",null,1,"N",null,null,null,null,null,null,null,4.01,1139.3499999999999,0,0]
["18479",288,284,"Catharanthus roseus Titan® F1 Blush","semenáč",null,1,"N",null,null,null,null,null,null,null,4.01,1139.3499999999999,0,0]
["18480",288,284,"Catharanthus roseus Titan® F1 Burgundy","semenáč",null,1,"N",null,null,null,null,null,null,null,4.01,1139.3499999999999,0,0]
["18485",288,284,"Catharanthus roseus Titan® F1 Dark Red","semenáč",null,1,"N",null,null,null,null,null,null,null,4.01,1139.3499999999999,0,0]
["18481",288,284,"Catharanthus roseus Titan® F1 Lavender Blue Halo","semenáč",null,1,"N",null,null,null,null,null,null,null,4.01,1139.3499999999999,0,0]
["17612",288,284,"Catharanthus roseus Titan® F1 Mix","semenáč",null,1,"N",null,null,null,null,null,null,null,4.01,1139.3499999999999,0,{"$f":"R333*1.15","v":0}]
["18483",288,284,"Catharanthus roseus Titan® F1 Polka Dot","semenáč",null,1,"N",null,null,null,null,null,null,null,4.01,1139.3499999999999,{"$f":"Q334*(J334+K334+L334+M334+N334+O334)","v":0},0]
["18484",288,284,"Catharanthus roseus Titan® F1 Punch","semenáč",null,1,"N",null,null,null,null,null,null,null,4.01,1139.3499999999999,0,0]
["33932",288,284,"Catharanthus roseus Titan® F1 Really Red","semenáč",null,1,"N",null,null,null,null,null,null,null,4.01,1139.3499999999999,0,0]
["18486",288,284,"Catharanthus roseus Titan® F1 Rose","semenáč",null,1,"N",null,null,null,null,null,null,null,4.01,1139.3499999999999,0,0]
["30080",288,284,"Catharanthus roseus Titan® F1 Rose Halo","semenáč",null,1,"N",null,null,null,null,null,null,null,4.01,1139.3499999999999,0,0]
["18487",288,284,"Catharanthus roseus Titan® F1 White Pure","semenáč",null,1,"N",null,null,null,null,null,null,null,4.01,1139.3499999999999,0,0]
["10650",288,284,"Celosia plumosa Kimono Mix","semenáč",null,1,"N",null,null,null,null,null,null,null,3.3,937.19,0,0]
["10644",288,284,"Celosia plumosa Kimono Orange","semenáč",null,1,"N",null,null,null,null,null,null,null,3.3,937.19,0,0]
["10645",288,284,"Celosia plumosa Kimono Red","semenáč",null,1,"N",null,null,null,null,null,null,null,3.3,937.19,0,0]
["18946",288,284,"Celosia plumosa Kimono Salmon Pink","semenáč",null,1,"N",null,null,null,null,null,null,null,3.3,937.19,0,0]
["10649",288,284,"Celosia plumosa Kimono Yellow","semenáč",null,1,"N",null,null,null,null,null,null,null,3.3,937.19,0,0]
["35196",288,284,"Celosia plumosa Potter Mix","semenáč",null,1,"N",null,null,null,null,null,null,null,3.09,878.1,0,0]
["10039",180,178,"Centradenia floribunda Cascade","řízek",null,1,"N",null,null,null,null,null,null,null,8.4600000000000009,1505.2,0,0]
["34072",288,284,"Cineraria maritima Quick Silver Compact","semenáč",null,6,"N",null,null,null,null,null,null,null,2.56,727.77,0,0]
["34072",510,500,"Cineraria maritima Quick Silver Compact","semenáč",null,4,"N",null,null,null,null,null,null,null,1.94,967.94,0,0]
["10668",288,284,"Cineraria maritima Silver Dust","semenáč",null,6,"N",null,null,null,null,null,null,null,2.25,639.64,0,0]
["10668",510,500,"Cineraria maritima Silver Dust","semenáč",null,4,"N",null,null,null,null,null,null,null,1.63,814.62,0,0]
["20602",84,84,"Cleome spinosa Clio™ Magenta","řízek",null,1,"N","A",null,null,null,null,null,null,14.92,1253.47,0,0]
["35498",84,84,"Coleus blumei Flame Thrower™ Habanero","řízek",null,1,"N","A",null,null,null,null,null,null,12.1,1016.74,0,0]
["35264",84,84,"Coleus blumei Flame Thrower™ Chili Pepper","řízek",null,1,"N","A",null,null,null,null,null,null,12.1,1016.74,0,0]
["36092",84,84,"Coleus blumei Flame Thrower™ Salsa Roja","řízek",null,1,"N","A",null,null,null,null,null,null,12.1,1016.74,0,0]
["35844",84,84,"Coleus blumei Flame Thrower™ Salsa Verde","řízek",null,1,"N","A",null,null,null,null,null,null,12.1,1016.74,0,0]
["35265",84,84,"Coleus blumei Flame Thrower™ Serrano","řízek",null,1,"N","A",null,null,null,null,null,null,12.1,1016.74,0,0]
["41586",84,84,"Coleus blumei Flame Thrower™ Spitfire","řízek","new",1,"N","A",null,null,null,null,null,null,12.1,1016.74,0,0]
["30513",84,84,"Coleus blumei Sunfighter Campfire","řízek",null,1,"N","A",null,null,null,null,null,null,15.18,1275.24,0,0]
["37699",84,84,"Coleus blumei Sunfighter Compact Vulcan","řízek",null,1,"N","A",null,null,null,null,null,null,15.18,1275.24,0,0]
["19603",84,84,"Coleus blumei Sunfighter Electric Lime","řízek",null,1,"N","A",null,null,null,null,null,null,15.18,1275.24,0,0]
["18024",84,84,"Coleus blumei Sunfighter Henna","řízek",null,1,"N","A",null,null,null,null,null,null,15.18,1275.24,0,0]
["37698",84,84,"Coleus blumei Sunfighter Limewire","řízek",null,1,"N","A",null,null,null,null,null,null,15.18,1275.24,0,0]
["19604",84,84,"Coleus blumei Sunfighter Redhead","řízek",null,1,"N","A",null,null,null,null,null,null,15.18,1275.24,0,0]
["20437",84,84,"Coleus blumei Sunfighter Trusty Rusty","řízek",null,1,"N","A",null,null,null,null,null,null,15.18,1275.24,0,0]
["38082",84,84,"Coleus canina","řízek","new",1,"N",null,null,null,null,null,null,null,11.48,964,0,0]
["15237",180,178,"Coleus x hybrida Kong® Mix","semenáč",null,1,"N",null,null,null,null,null,null,null,8.7200000000000006,1551.33,0,0]
["20269",180,178,"Coleus x hybrida Premium Sun Chocolate Covered Cherry","semenáč",null,1,"N",null,null,null,null,null,null,null,8.7200000000000006,1551.33,0,0]
["10680",288,280,"Coleus x hybrida Wizard® Mix","semenáč",null,2,"N",null,null,null,null,null,null,null,3.15,882.74,0,0]
["30664",180,178,"Convolvulus sabatius Neon Blue","řízek",null,1,"N","A",null,null,null,null,null,null,11.16,1986.69,0,0]
["10693",180,178,"Cosmos bipinnatus Symphony Carmine","semenáč",null,4,"N",null,null,null,null,null,null,null,6.42,1141.97,0,0]
["10693",288,284,"Cosmos bipinnatus Symphony Carmine","semenáč",null,1,"N",null,null,null,null,null,null,null,3.87,1098.92,0,0]
["10696",288,284,"Cosmos bipinnatus Symphony Mix","semenáč",null,1,"N",null,null,null,null,null,null,null,3.87,1098.92,0,0]
["10696",510,375,"Cosmos bipinnatus Symphony Mix","semenáč",null,1,"N",null,null,null,null,null,null,null,2.93,1099.3599999999999,0,0]
["10694",180,178,"Cosmos bipinnatus Symphony Pink","semenáč",null,4,"N",null,null,null,null,null,null,null,6.42,1141.97,0,0]
["10694",288,284,"Cosmos bipinnatus Symphony Pink","semenáč",null,1,"N",null,null,null,null,null,null,null,3.87,1098.92,0,0]
["10695",180,178,"Cosmos bipinnatus Symphony White","semenáč",null,4,"N",null,null,null,null,null,null,null,6.42,1141.97,0,0]
["10695",288,284,"Cosmos bipinnatus Symphony White","semenáč",null,1,"N",null,null,null,null,null,null,null,3.87,1098.92,0,0]
["38047",128,126,"Craspedia globosa Golf™ Beauty","řízek",null,1,"Y","A",null,null,null,null,null,null,16.77,2112.6799999999998,0,0]
["38020",128,126,"Cuphea hyssopifolia Myrtis® Colibri","řízek",null,2,"N","A",null,null,null,null,null,null,11.9,1499.09,0,0]
["37242",128,126,"Cuphea hyssopifolia Myrtis® Dark Purple","řízek",null,2,"N","A",null,null,null,null,null,null,11.17,1407.1,0,0]
["37248",128,126,"Cuphea hyssopifolia Myrtis® Deep Pink","řízek",null,2,"N","A",null,null,null,null,null,null,11.17,1407.1,0,0]
["37245",128,126,"Cuphea hyssopifolia Myrtis® White","řízek",null,2,"N","A",null,null,null,null,null,null,11.17,1407.1,0,0]
["38198",288,284,"Cuphea llavea Sweet Talk Deep Pink","semenáč","new",1,"N",null,null,null,null,null,null,null,7.79,2211.35,0,0]
["38199",288,284,"Cuphea llavea Sweet Talk Lavender Splash","semenáč","new",1,"N",null,null,null,null,null,null,null,7.79,2211.35,0,0]
["38200",288,284,"Cuphea llavea Sweet Talk Red","semenáč","new",1,"N",null,null,null,null,null,null,null,7.79,2211.35,0,0]
["36854",288,284,"Cuphea ramosissima Pink Shimmer","semenáč",null,5,"N",null,null,null,null,null,null,null,6.43,1826.71,0,0]
["14131",128,126,"Dahlia coccinea Dahlietta® Anna","řízek",null,1,"N","A",null,null,null,null,null,null,10.32,1299.93,0,0]
["18299",128,126,"Dahlia coccinea Dahlietta® Blanca","řízek",null,1,"N","A",null,null,null,null,null,null,10.32,1299.93,0,0]
["14133",128,126,"Dahlia coccinea Dahlietta® Emily","řízek",null,1,"N","A",null,null,null,null,null,null,10.32,1299.93,0,0]
["18300",128,126,"Dahlia coccinea Dahlietta® Julia","řízek",null,1,"N","A",null,null,null,null,null,null,10.32,1299.93,0,0]
["14135",128,126,"Dahlia coccinea Dahlietta® Linda","řízek",null,1,"N","A",null,null,null,null,null,null,10.32,1299.93,0,0]
["14136",128,126,"Dahlia coccinea Dahlietta® Margaret","řízek",null,1,"N","A",null,null,null,null,null,null,10.32,1299.93,0,0]
["17476",128,126,"Dahlia coccinea Dahlietta® Patty","řízek",null,1,"N","A",null,null,null,null,null,null,10.32,1299.93,0,0]
["17477",128,126,"Dahlia coccinea Dahlietta® Rachel","řízek",null,1,"N","A",null,null,null,null,null,null,10.32,1299.93,0,0]
["35376",128,126,"Dahlia coccinea Dahlietta® Shirley","řízek",null,1,"N","A",null,null,null,null,null,null,10.32,1299.93,0,0]
["34097",128,126,"Dahlia coccinea Dahlietta® Surprise Becky","řízek",null,1,"N","A",null,null,null,null,null,null,10.32,1299.93,0,0]
["36103",128,126,"Dahlia coccinea Dahlietta® Surprise Candy","řízek",null,1,"N","A",null,null,null,null,null,null,10.32,1299.93,0,{"$f":"R397*1.15","v":0}]
["34099",128,126,"Dahlia coccinea Dahlietta® Surprise Cindy","řízek",null,1,"N","A",null,null,null,null,null,null,10.32,1299.93,{"$f":"Q398*(J398+K398+L398+M398+N398+O398)","v":0},0]
["34096",128,126,"Dahlia coccinea Dahlietta® Surprise Demi","řízek",null,1,"N","A",null,null,null,null,null,null,10.32,1299.93,0,0]
["36102",128,126,"Dahlia coccinea Dahlietta® Surprise Elsa","řízek",null,1,"N","A",null,null,null,null,null,null,10.32,1299.93,0,0]
["17481",128,126,"Dahlia coccinea Dahlietta® Surprise Kelly","řízek",null,1,"N","A",null,null,null,null,null,null,10.32,1299.93,0,0]
["18301",128,126,"Dahlia coccinea Dahlietta® Surprise Lily","řízek",null,1,"N","A",null,null,null,null,null,null,10.32,1299.93,0,0]
["17482",128,126,"Dahlia coccinea Dahlietta® Surprise Louise","řízek",null,1,"N","A",null,null,null,null,null,null,10.32,1299.93,0,0]
["17483",128,126,"Dahlia coccinea Dahlietta® Surprise Paula","řízek",null,1,"N","A",null,null,null,null,null,null,10.32,1299.93,0,0]
["17478",128,126,"Dahlia coccinea Dahlietta® Tessy","řízek",null,1,"N","A",null,null,null,null,null,null,10.32,1299.93,0,0]
["34100",128,126,"Dahlia coccinea Dahlietta® Whitney","řízek",null,1,"N","A",null,null,null,null,null,null,10.32,1299.93,0,0]
["37971",84,84,"Dahlia coccinea Dalina® Maxi Apricot","řízek","new",1,"N","A",null,null,null,null,null,null,13.19,1107.81,0,0]
["30627",84,84,"Dahlia coccinea Dalina® Maxi Cadena","řízek",null,1,"N","A",null,null,null,null,null,null,13.19,1107.81,0,0]
["35971",84,84,"Dahlia coccinea Dalina® Maxi Cancun","řízek",null,1,"N","A",null,null,null,null,null,null,13.19,1107.81,0,0]
["30629",84,84,"Dahlia coccinea Dalina® Maxi Castillo","řízek",null,1,"N","A",null,null,null,null,null,null,13.19,1107.81,0,0]
["30622",84,84,"Dahlia coccinea Dalina® Maxi Emilio","řízek",null,1,"N","A",null,null,null,null,null,null,13.19,1107.81,0,0]
["30619",84,84,"Dahlia coccinea Dalina® Maxi Lopez","řízek",null,1,"N","A",null,null,null,null,null,null,13.19,1107.81,0,0]
["35974",84,84,"Dahlia coccinea Dalina® Maxi Mendoza","řízek",null,1,"N","A",null,null,null,null,null,null,13.19,1107.81,0,0]
["35975",84,84,"Dahlia coccinea Dalina® Maxi Merida","řízek",null,1,"N","A",null,null,null,null,null,null,13.19,1107.81,0,0]
["41589",84,84,"Dahlia coccinea Dalina® Maxi Purple","řízek","new",1,"N","A",null,null,null,null,null,null,13.19,1107.81,0,0]
["30621",84,84,"Dahlia coccinea Dalina® Maxi Romero","řízek",null,1,"N","A",null,null,null,null,null,null,13.19,1107.81,0,0]
["30626",84,84,"Dahlia coccinea Dalina® Maxi Salinas","řízek",null,1,"N","A",null,null,null,null,null,null,13.19,1107.81,0,0]
["30620",84,84,"Dahlia coccinea Dalina® Maxi Sonora","řízek",null,1,"N","A",null,null,null,null,null,null,13.19,1107.81,0,0]
["30624",84,84,"Dahlia coccinea Dalina® Maxi Tampico","řízek",null,1,"N","A",null,null,null,null,null,null,13.19,1107.81,0,0]
["36106",84,84,"Dahlia coccinea Gardenetta® Dark Red","řízek",null,1,"N","A",null,null,null,null,null,null,13.19,1107.81,0,0]
["35379",84,84,"Dahlia coccinea Gardenetta® Fire Ball","řízek",null,1,"N","A",null,null,null,null,null,null,13.19,1107.81,0,0]
["37966",84,84,"Dahlia coccinea Gardenetta® Orange","řízek","new",1,"N","A",null,null,null,null,null,null,13.19,1107.81,0,0]
["34101",84,84,"Dahlia coccinea Gardenetta® Peach","řízek",null,1,"N","A",null,null,null,null,null,null,13.19,1107.81,0,0]
["35290",84,84,"Dahlia coccinea Gardenetta® White","řízek",null,1,"N","A",null,null,null,null,null,null,13.19,1107.81,0,0]
["30214",84,84,"Dahlia coccinea Happy Days® Bicolour Yellow-Red","řízek",null,1,"N","A",null,null,null,null,null,null,13.92,1169.1400000000001,0,0]
["18132",84,84,"Dahlia coccinea Happy Days® Cream","řízek",null,1,"N","A",null,null,null,null,null,null,13.92,1169.1400000000001,0,0]
["31067",84,84,"Dahlia coccinea Happy Days® Neon","řízek",null,1,"N","A",null,null,null,null,null,null,13.92,1169.1400000000001,0,0]
["18133",84,84,"Dahlia coccinea Happy Days® Pink","řízek",null,1,"N","A",null,null,null,null,null,null,13.92,1169.1400000000001,0,0]
["38363",84,84,"Dahlia coccinea Happy Days® Purple Impr.","řízek","new",1,"N","A",null,null,null,null,null,null,13.92,1169.1400000000001,0,0]
["30216",84,84,"Dahlia coccinea Happy Days® Red","řízek",null,1,"N","A",null,null,null,null,null,null,13.92,1169.1400000000001,0,0]
["38364",84,84,"Dahlia coccinea Happy Days® Yellow Impr.","řízek","new",1,"N","A",null,null,null,null,null,null,13.92,1169.1400000000001,0,0]
["37118",84,84,"Dahlia coccinea Xantico GL Lilac","řízek","new",1,"N","A",null,null,null,null,null,null,13.01,1092.48,0,0]
["36967",84,84,"Dahlia coccinea Xantico GL Orange","řízek",null,1,"N","A",null,null,null,null,null,null,13.01,1092.48,0,0]
["36968",84,84,"Dahlia coccinea Xantico GL Purple","řízek",null,1,"N","A",null,null,null,null,null,null,13.01,1092.48,0,0]
["36969",84,84,"Dahlia coccinea Xantico GL Yellow","řízek",null,1,"N","A",null,null,null,null,null,null,13.01,1092.48,0,0]
["10716",288,284,"Dahlia x hybrida Figaro Mix","semenáč",null,1,"N",null,null,null,null,null,null,null,4.34,1233.7,0,0]
["34487",288,284,"Dianthus chinensis Coronet™ Cherry Red","semenáč",null,1,"N",null,null,null,null,null,null,null,3.34,947.56,0,0]
["19406",288,284,"Dianthus chinensis Coronet™ Lavender Picotee","semenáč",null,1,"N",null,null,null,null,null,null,null,3.34,947.56,0,0]
["10753",288,284,"Dianthus chinensis Coronet™ Mix","semenáč",null,1,"N",null,null,null,null,null,null,null,3.34,947.56,0,0]
["10753",510,440,"Dianthus chinensis Coronet™ Mix","semenáč",null,1,"N",null,null,null,null,null,null,null,2.71,1193.76,0,0]
["38183",288,284,"Dianthus chinensis Coronet™ Raspberry","semenáč",null,1,"N",null,null,null,null,null,null,null,3.34,947.56,0,0]
["35401",288,284,"Dianthus chinensis Coronet™ Rose","semenáč",null,1,"N",null,null,null,null,null,null,null,3.34,947.56,0,0]
["20816",288,284,"Dianthus chinensis Coronet™ Scarlet","semenáč",null,1,"N",null,null,null,null,null,null,null,3.34,947.56,0,0]
["32904",288,284,"Dianthus chinensis Coronet™ Strawberry","semenáč",null,1,"N",null,null,null,null,null,null,null,3.34,947.56,0,0]
["34488",288,284,"Dianthus chinensis Coronet™ White","semenáč",null,1,"N",null,null,null,null,null,null,null,3.34,947.56,0,0]
["17381",288,284,"Dianthus chinensis x barbatus Festival F1 Mix","semenáč",null,1,"N",null,null,null,null,null,null,null,3.73,1058.49,0,0]
["17381",510,440,"Dianthus chinensis x barbatus Festival F1 Mix","semenáč",null,1,"N",null,null,null,null,null,null,null,3.05,1339.93,0,0]
["31781",180,175,"Diascia barberae Juliet™ Orange","řízek",null,1,"Y","A",null,null,null,null,null,null,9.83,1719.49,0,0]
["41611",180,175,"Diascia barberae Juliet™ Pink Impr.","řízek","new",1,"Y","A",null,null,null,null,null,null,9.83,1719.49,0,0]
["41610",180,175,"Diascia barberae Juliet™ Red Impr.","řízek","new",1,"Y","A",null,null,null,null,null,null,9.83,1719.49,0,0]
["41612",180,175,"Diascia barberae Juliet™ Salmon Impr.","řízek","new",1,"Y","A",null,null,null,null,null,null,9.83,1719.49,0,0]
["41613",180,175,"Diascia barberae Juliet™ White Impr.","řízek","new",1,"Y","A",null,null,null,null,null,null,9.83,1719.49,0,0]
["36545",180,175,"Diascia barberae Trinity™ Sunset","řízek",null,1,"Y","A",null,null,null,null,null,null,10.65,1864.5,0,0]
["14398",180,178,"Dichondra argentea Silver Falls","semenáč",null,1,"N",null,null,null,null,null,null,null,10.29,1831.39,0,0]
["14398",288,284,"Dichondra argentea Silver Falls","semenáč",null,1,"N",null,null,null,null,null,null,null,9.24,2622.93,0,0]
["19943",128,126,"Dorotheanthus bellidiformis Mezoo","řízek",null,1,"N","A",null,null,null,null,null,null,12.14,1529.91,0,0]
["10759",288,284,"Erigeron karvinskianus Profusion","semenáč",null,4,"N",null,null,null,null,null,null,null,3.52,999.39,0,0]
["35501",128,126,"Euphorbia hypericifolia Euphoria® White","řízek",null,1,"Y","A",null,null,null,null,null,null,10.75,1355.12,0,0]
["36853",128,126,"Euphorbia hypericifolia Silverfog White","řízek",null,1,"Y","A",null,null,null,null,null,null,10.75,1355.12,0,0]
["12568",128,126,"Euryops pectinatus Sonnenschein Yellow","řízek",null,1,"N",null,null,null,null,null,null,null,8.23,1036.83,0,0]
["19471",180,178,"Felicia amelloides FeliciTARA® Blue","řízek",null,1,"N","A",null,null,null,null,null,null,8.68,1545.49,0,{"$f":"R461*1.15","v":0}]
["41642",180,178,"Felicia amelloides Felicity Leading Lady","řízek","new",1,"N","A",null,null,null,null,null,null,8.7799999999999994,1563.03,{"$f":"Q462*(J462+K462+L462+M462+N462+O462)","v":0},0]
["35448",128,126,"Fuchsia magellanica Diva® Coral & White","řízek",null,1,"N","A",null,null,null,null,null,null,7.82,985.77,0,0]
["31708",128,126,"Fuchsia magellanica Diva® Cherry & White","řízek",null,1,"N","A",null,null,null,null,null,null,7.82,985.77,0,0]
["31706",128,126,"Fuchsia magellanica Diva® Light Pink & Purple","řízek",null,1,"N","A",null,null,null,null,null,null,7.82,985.77,0,0]
["14963",128,126,"Fuchsia magellanica Diva® Red & White","řízek",null,1,"N","A",null,null,null,null,null,null,7.82,985.77,0,0]
["35413",128,126,"Fuchsia magellanica Diva® Rose & Violet","řízek",null,1,"N","A",null,null,null,null,null,null,7.82,985.77,0,0]
["12870",128,126,"Fuchsia magellanica Diva® White & Violet","řízek",null,1,"N","A",null,null,null,null,null,null,7.82,985.77,0,0]
["31701",128,126,"Fuchsia magellanica Windchimes® Neon Pink Violet","řízek",null,1,"N","A",null,null,null,null,null,null,7.82,985.77,0,0]
["33056",128,126,"Fuchsia magellanica Windchimes® Pink & Purple","řízek",null,1,"N","A",null,null,null,null,null,null,7.82,985.77,0,0]
["14601",128,126,"Fuchsia magellanica Windchimes® Rose & Purple","řízek",null,1,"N","A",null,null,null,null,null,null,7.82,985.77,0,0]
["19409",288,284,"Gazania rigens Big Kiss F1 Mix","semenáč",null,1,"N",null,null,null,null,null,null,null,4.6900000000000004,1333.22,0,0]
["38264",288,284,"Gazania rigens Big Kiss F1 Orange Flame","semenáč",null,1,"N",null,null,null,null,null,null,null,4.6900000000000004,1333.22,0,0]
["17182",288,284,"Gazania rigens Big Kiss F1 White Flame","semenáč",null,1,"N",null,null,null,null,null,null,null,4.6900000000000004,1333.22,0,0]
["17181",288,284,"Gazania rigens Big Kiss F1 Yellow Flame","semenáč",null,1,"N",null,null,null,null,null,null,null,4.6900000000000004,1333.22,0,0]
["34445",288,284,"Gazania rigens Enorma Mix","semenáč",null,1,"N",null,null,null,null,null,null,null,3.68,1045.01,0,0]
["19081",288,284,"Gazania rigens New Day® Bronze Shades","semenáč",null,1,"N",null,null,null,null,null,null,null,3.6,1022.2,0,0]
["19082",288,284,"Gazania rigens New Day® Clear Orange","semenáč",null,1,"N",null,null,null,null,null,null,null,3.6,1022.2,0,0]
["19086",288,284,"Gazania rigens New Day® Mix","semenáč",null,1,"N",null,null,null,null,null,null,null,3.6,1022.2,0,0]
["19086",510,450,"Gazania rigens New Day® Mix","semenáč",null,1,"N",null,null,null,null,null,null,null,2.98,1339.74,0,0]
["19083",288,284,"Gazania rigens New Day® Pink Shades","semenáč",null,1,"N",null,null,null,null,null,null,null,3.6,1022.2,0,0]
["30121",288,284,"Gazania rigens New Day® Red Shades","semenáč",null,1,"N",null,null,null,null,null,null,null,3.6,1022.2,0,0]
["32542",288,284,"Gazania rigens New Day® Red Stripe","semenáč",null,1,"N",null,null,null,null,null,null,null,3.6,1022.2,0,0]
["31514",288,284,"Gazania rigens New Day® Rose Stripe","semenáč",null,1,"N",null,null,null,null,null,null,null,3.6,1022.2,0,0]
["32543",288,284,"Gazania rigens New Day® Tiger Stripe Mix","semenáč",null,1,"N",null,null,null,null,null,null,null,3.6,1022.2,0,0]
["19084",288,284,"Gazania rigens New Day® White","semenáč",null,1,"N",null,null,null,null,null,null,null,3.6,1022.2,0,0]
["36653",288,284,"Gazania rigens New Day® Yellow","semenáč",null,1,"N",null,null,null,null,null,null,null,3.6,1022.2,0,0]
["38014",84,84,"Gazania rigens Sun Stopper Lemon","řízek","new",1,"N","A",null,null,null,null,null,null,14.51,1218.51,0,0]
["38015",84,84,"Gazania rigens Sun Stopper Orange","řízek","new",1,"N","A",null,null,null,null,null,null,14.51,1218.51,0,0]
["12614",180,178,"Glechoma variegata","řízek",null,1,"N",null,null,null,null,null,null,null,6.7,1193.3,0,0]
["30007",180,178,"Gypsophila muralis Doublicious MixMasters® Mix","semenáč",null,8,"Y",null,null,null,null,null,null,null,7.68,1367.44,0,0]
["18153",180,178,"Gypsophila muralis Fleur White","semenáč",null,8,"Y",null,null,null,null,null,null,null,7.68,1367.44,0,0]
["18153",288,284,"Gypsophila muralis Fleur White","semenáč",null,4,"Y",null,null,null,null,null,null,null,4.32,1226.44,0,0]
["14759",180,178,"Gypsophila muralis Gypsy Deep Rose","semenáč",null,8,"Y",null,null,null,null,null,null,null,7.68,1367.44,0,0]
["14759",288,284,"Gypsophila muralis Gypsy Deep Rose","semenáč",null,4,"Y",null,null,null,null,null,null,null,4.32,1226.44,0,0]
["35744",128,126,"Hebe andersonii Delphine","řízek",null,1,"N",null,null,null,null,null,null,null,9.9700000000000006,1255.77,0,0]
["20782",128,126,"Hebe andersonii Grethe","řízek",null,1,"N",null,null,null,null,null,null,null,9.9700000000000006,1255.77,0,0]
["19777",128,126,"Hebe andersonii Hanne","řízek",null,1,"N",null,null,null,null,null,null,null,9.9700000000000006,1255.77,0,0]
["35828",128,126,"Hebe andersonii Katrine","řízek",null,1,"N",null,null,null,null,null,null,null,9.9700000000000006,1255.77,0,0]
["32142",128,126,"Hebe andersonii Nana","řízek",null,1,"N",null,null,null,null,null,null,null,9.9700000000000006,1255.77,0,0]
["35829",128,126,"Hebe andersonii Tricolour","řízek",null,1,"N",null,null,null,null,null,null,null,9.9700000000000006,1255.77,0,0]
["35830",128,126,"Hebe andersonii Variegata","řízek",null,1,"N",null,null,null,null,null,null,null,9.9700000000000006,1255.77,0,0]
["12576",128,126,"Helichrysum petiolare Gold","řízek",null,1,"Y",null,null,null,null,null,null,null,8.99,1132.96,0,0]
["12572",180,178,"Helichrysum petiolare Microphylla","řízek",null,1,"Y",null,null,null,null,null,null,null,7.21,1282.97,0,0]
["12573",128,126,"Helichrysum petiolare Silver","řízek",null,1,"Y",null,null,null,null,null,null,null,7.48,942.99,0,0]
["36986",128,126,"Heliotropium arborescens Honey Blue","řízek",null,1,"N","A",null,null,null,null,null,null,10.82,1362.94,0,0]
["12578",128,126,"Heliotropium arborescens Marine","řízek",null,1,"N",null,null,null,null,null,null,null,8.99,1132.96,0,0]
["37701",128,126,"Impatiens New Guinea Clockwork™ DL Appleblossom","řízek",null,1,"N","A",null,null,null,null,null,null,8.8699999999999992,1117.32,0,0]
["17697",128,126,"Impatiens New Guinea Clockwork™ DL Bicolour Lilac","řízek",null,1,"N","A",null,null,null,null,null,null,8.8699999999999992,1117.32,0,0]
["19584",128,126,"Impatiens New Guinea Clockwork™ DL Bicolour Orange","řízek",null,1,"N","A",null,null,null,null,null,null,8.8699999999999992,1117.32,0,0]
["16391",128,126,"Impatiens New Guinea Clockwork™ DL Orange","řízek",null,1,"N","A",null,null,null,null,null,null,8.8699999999999992,1117.32,0,0]
["31726",128,126,"Impatiens New Guinea Clockwork™ DL Pink","řízek",null,1,"N","A",null,null,null,null,null,null,8.8699999999999992,1117.32,0,0]
["35166",128,126,"Impatiens New Guinea Clockwork™ DL Pink Star","řízek",null,1,"N","A",null,null,null,null,null,null,8.8699999999999992,1117.32,0,0]
["16386",128,126,"Impatiens New Guinea Clockwork™ GL Dark Red","řízek",null,1,"N","A",null,null,null,null,null,null,8.8699999999999992,1117.32,0,0]
["36083",128,126,"Impatiens New Guinea Clockwork™ GL Lavender","řízek",null,1,"N","A",null,null,null,null,null,null,8.8699999999999992,1117.32,0,0]
["31720",128,126,"Impatiens New Guinea Clockwork™ GL Magenta","řízek",null,1,"N","A",null,null,null,null,null,null,8.8699999999999992,1117.32,0,0]
["35165",128,126,"Impatiens New Guinea Clockwork™ GL Orange","řízek",null,1,"N","A",null,null,null,null,null,null,8.8699999999999992,1117.32,0,0]
["32647",128,126,"Impatiens New Guinea Clockwork™ GL Purple","řízek",null,1,"N","A",null,null,null,null,null,null,8.8699999999999992,1117.32,0,0]
["31722",128,126,"Impatiens New Guinea Clockwork™ GL Red","řízek",null,1,"N","A",null,null,null,null,null,null,8.8699999999999992,1117.32,0,0]
["36094",128,126,"Impatiens New Guinea Clockwork™ GL Rose","řízek",null,1,"N","A",null,null,null,null,null,null,8.8699999999999992,1117.32,0,0]
["19586",128,126,"Impatiens New Guinea Clockwork™ GL Salmon","řízek",null,1,"N","A",null,null,null,null,null,null,8.8699999999999992,1117.32,0,0]
["35704",128,126,"Impatiens New Guinea Clockwork™ GL White","řízek",null,1,"N","A",null,null,null,null,null,null,8.8699999999999992,1117.32,0,0]
["19868",128,126,"Impatiens New Guinea SunPatiens® Compact Blush Pink","řízek",null,1,"N","A",null,null,null,null,null,null,13.14,1655.48,0,0]
["32772",128,126,"Impatiens New Guinea SunPatiens® Compact Coral Pink","řízek",null,1,"N","A",null,null,null,null,null,null,13.14,1655.48,0,0]
["19870",128,126,"Impatiens New Guinea SunPatiens® Compact Deep Rose","řízek",null,1,"N","A",null,null,null,null,null,null,13.14,1655.48,0,{"$f":"R525*1.15","v":0}]
["20608",128,126,"Impatiens New Guinea SunPatiens® Compact Electric Orange","řízek",null,1,"N","A",null,null,null,null,null,null,13.14,1655.48,{"$f":"Q526*(J526+K526+L526+M526+N526+O526)","v":0},0]
["38133",128,126,"Impatiens New Guinea SunPatiens® Compact Hot Pink","řízek",null,1,"N","A",null,null,null,null,null,null,13.14,1655.48,0,0]
["34681",128,126,"Impatiens New Guinea SunPatiens® Compact Magenta","řízek",null,1,"N","A",null,null,null,null,null,null,13.14,1655.48,0,0]
["19887",128,126,"Impatiens New Guinea SunPatiens® Compact Orange","řízek",null,1,"N","A",null,null,null,null,null,null,13.14,1655.48,0,0]
["35384",128,126,"Impatiens New Guinea SunPatiens® Compact Orchid Blush","řízek",null,1,"N","A",null,null,null,null,null,null,13.14,1655.48,0,0]
["34682",128,126,"Impatiens New Guinea SunPatiens® Compact Purple","řízek",null,1,"N","A",null,null,null,null,null,null,13.14,1655.48,0,0]
["42836",128,126,"Impatiens New Guinea SunPatiens® Compact Purple Candy","řízek","new",1,"N","A",null,null,null,null,null,null,13.14,1655.48,0,0]
["20168",128,126,"Impatiens New Guinea SunPatiens® Compact Red","řízek",null,1,"N","A",null,null,null,null,null,null,13.14,1655.48,0,0]
["42835",128,126,"Impatiens New Guinea SunPatiens® Compact Red Candy","řízek","new",1,"N","A",null,null,null,null,null,null,13.14,1655.48,0,0]
["20610",128,126,"Impatiens New Guinea SunPatiens® Compact White","řízek",null,1,"N","A",null,null,null,null,null,null,13.14,1655.48,0,0]
["32001",84,84,"Impatiens New Guinea SunPatiens® Vigorous Clear White","řízek",null,1,"N","A",null,null,null,null,null,null,14.48,1216.67,0,0]
["35777",84,84,"Impatiens New Guinea SunPatiens® Vigorous Lavender Splash","řízek",null,1,"N","A",null,null,null,null,null,null,14.48,1216.67,0,0]
["35386",84,84,"Impatiens New Guinea SunPatiens® Vigorous Orange","řízek",null,1,"N","A",null,null,null,null,null,null,14.48,1216.67,0,0]
["42838",84,84,"Impatiens New Guinea SunPatiens® Vigorous Peach Candy","řízek","new",1,"N","A",null,null,null,null,null,null,14.48,1216.67,0,0]
["31999",84,84,"Impatiens New Guinea SunPatiens® Vigorous Pearl Pink","řízek",null,1,"N","A",null,null,null,null,null,null,14.48,1216.67,0,0]
["42837",84,84,"Impatiens New Guinea SunPatiens® Vigorous Pretty Pink","řízek","new",1,"N","A",null,null,null,null,null,null,14.48,1216.67,0,0]
["35385",84,84,"Impatiens New Guinea SunPatiens® Vigorous Red","řízek",null,1,"N","A",null,null,null,null,null,null,14.48,1216.67,0,0]
["35780",84,84,"Impatiens New Guinea SunPatiens® Vigorous Scarlet","řízek",null,1,"N","A",null,null,null,null,null,null,14.48,1216.67,0,0]
["38135",84,84,"Impatiens New Guinea SunPatiens® Vigorous Sweetheart","řízek",null,1,"N","A",null,null,null,null,null,null,14.48,1216.67,0,0]
["36699",288,284,"Impatiens walleriana Beacon® Bright Red","semenáč",null,1,"N",null,null,null,null,null,null,null,2.77,786.86,0,0]
["36699",510,470,"Impatiens walleriana Beacon® Bright Red","semenáč",null,1,"N",null,null,null,null,null,null,null,2.35,1104.03,0,0]
["36697",288,284,"Impatiens walleriana Beacon® Coral","semenáč",null,1,"N",null,null,null,null,null,null,null,2.77,786.86,0,0]
["36697",510,470,"Impatiens walleriana Beacon® Coral","semenáč",null,1,"N",null,null,null,null,null,null,null,2.35,1104.03,0,0]
["43166",288,284,"Impatiens walleriana Beacon® Lipstick","semenáč","new",1,"N",null,null,null,null,null,null,null,2.77,786.86,0,0]
["43166",510,470,"Impatiens walleriana Beacon® Lipstick","semenáč","new",1,"N",null,null,null,null,null,null,null,2.35,1104.03,0,0]
["36698",288,284,"Impatiens walleriana Beacon® Orange","semenáč",null,1,"N",null,null,null,null,null,null,null,2.77,786.86,0,0]
["36698",510,470,"Impatiens walleriana Beacon® Orange","semenáč",null,1,"N",null,null,null,null,null,null,null,2.35,1104.03,0,0]
["37067",288,284,"Impatiens walleriana Beacon® Rose","semenáč",null,1,"N",null,null,null,null,null,null,null,2.77,786.86,0,0]
["37067",510,470,"Impatiens walleriana Beacon® Rose","semenáč",null,1,"N",null,null,null,null,null,null,null,2.35,1104.03,0,0]
["36700",288,284,"Impatiens walleriana Beacon® Salmon","semenáč",null,1,"N",null,null,null,null,null,null,null,2.77,786.86,0,0]
["36700",510,470,"Impatiens walleriana Beacon® Salmon","semenáč",null,1,"N",null,null,null,null,null,null,null,2.35,1104.03,0,0]
["36750",288,284,"Impatiens walleriana Beacon® Select Mix","semenáč",null,1,"N",null,null,null,null,null,null,null,2.77,786.86,0,0]
["36750",510,470,"Impatiens walleriana Beacon® Select Mix","semenáč",null,1,"N",null,null,null,null,null,null,null,2.35,1104.03,0,0]
["36701",288,284,"Impatiens walleriana Beacon® Violet Shades","semenáč",null,1,"N",null,null,null,null,null,null,null,2.77,786.86,0,0]
["36701",510,470,"Impatiens walleriana Beacon® Violet Shades","semenáč",null,1,"N",null,null,null,null,null,null,null,2.35,1104.03,0,0]
["36702",288,284,"Impatiens walleriana Beacon® White","semenáč",null,1,"N",null,null,null,null,null,null,null,2.77,786.86,0,0]
["36702",510,470,"Impatiens walleriana Beacon® White","semenáč",null,1,"N",null,null,null,null,null,null,null,2.35,1104.03,0,0]
["31672",128,126,"Impatiens walleriana Fiesta™ Bonita Cherry","řízek",null,1,"N","A",null,null,null,null,null,null,10.5,1322.92,0,0]
["31668",128,126,"Impatiens walleriana Fiesta™ Bonita Lavender Stardust","řízek",null,1,"N","A",null,null,null,null,null,null,10.5,1322.92,0,0]
["31669",128,126,"Impatiens walleriana Fiesta™ Bonita Pink","řízek",null,1,"N","A",null,null,null,null,null,null,10.5,1322.92,0,0]
["31671",128,126,"Impatiens walleriana Fiesta™ Bonita Salmon","řízek",null,1,"N","A",null,null,null,null,null,null,10.5,1322.92,0,0]
["31673",128,126,"Impatiens walleriana Fiesta™ Bonita White","řízek",null,1,"N","A",null,null,null,null,null,null,10.5,1322.92,0,0]
["37708",128,126,"Impatiens walleriana Glimmer™ Appleblossom","řízek","new",1,"N","A",null,null,null,null,null,null,11.6,1461.37,0,0]
["37712",128,126,"Impatiens walleriana Glimmer™ Bright Red","řízek","new",1,"N","A",null,null,null,null,null,null,11.6,1461.37,0,0]
["37706",128,126,"Impatiens walleriana Glimmer™ Burgundy","řízek","new",1,"N","A",null,null,null,null,null,null,11.6,1461.37,0,0]
["37710",128,126,"Impatiens walleriana Glimmer™ Hot Pink","řízek","new",1,"N","A",null,null,null,null,null,null,11.6,1461.37,0,0]
["37711",128,126,"Impatiens walleriana Glimmer™ Orange","řízek","new",1,"N","A",null,null,null,null,null,null,11.6,1461.37,0,0]
["37713",128,126,"Impatiens walleriana Glimmer™ White","řízek","new",1,"N","A",null,null,null,null,null,null,11.6,1461.37,0,0]
["31445",84,84,"Ipomoea batatas Marguerite","řízek",null,1,"N",null,null,null,null,null,null,null,11.13,935.17,0,0]
["34694",84,84,"Ipomoea batatas SolarPower™ Black","řízek",null,1,"N","A",null,null,null,null,null,null,13.32,1119.1600000000001,0,0]
["31682",84,84,"Ipomoea batatas SolarPower™ Green","řízek",null,1,"N","A",null,null,null,null,null,null,13.32,1119.1600000000001,0,0]
["35835",84,84,"Ipomoea batatas SolarPower™ Lime Heart","řízek",null,1,"N","A",null,null,null,null,null,null,13.32,1119.1600000000001,0,0]
["35836",84,84,"Ipomoea batatas SolarPower™ Red Heart","řízek",null,1,"N","A",null,null,null,null,null,null,13.32,1119.1600000000001,0,0]
["34696",84,84,"Ipomoea batatas SolarTower™ Black","řízek",null,1,"Y","A",null,null,null,null,null,null,15.17,1274.6300000000001,0,0]
["36371",84,84,"Ipomoea batatas SolarTower™ Lime","řízek",null,1,"N","A",null,null,null,null,null,null,15.17,1274.6300000000001,0,0]
["14967",84,84,"Ipomoea batatas Sweet Caroline® Bronze","řízek",null,1,"N","A",null,null,null,null,null,null,14.42,1211.1500000000001,0,0]
["14966",84,84,"Ipomoea batatas Sweet Caroline® Purple","řízek",null,1,"N","A",null,null,null,null,null,null,14.42,1211.1500000000001,0,0]
["32756",288,284,"Isotoma axillaris Lauren Blue","semenáč",null,1,"N",null,null,null,null,null,null,null,5,1420.31,0,0]
["36097",180,178,"Jamesbrittenia breviflora Goldstar™","řízek",null,1,"N","A",null,null,null,null,null,null,10.31,1834.64,0,0]
["36373",128,126,"Lantana camara Bloomify™ Mango","řízek",null,1,"N","A",null,null,null,null,null,null,11.77,1482.53,0,0]
["37715",128,126,"Lantana camara Bloomify™ Orange","řízek","new",1,"N","A",null,null,null,null,null,null,11.77,1482.53,0,0]
["42855",128,126,"Lantana camara Bloomify™ Pink","řízek","new",1,"N","A",null,null,null,null,null,null,11.77,1482.53,0,0]
["35238",128,126,"Lantana camara Bloomify™ Red","řízek",null,1,"N","A",null,null,null,null,null,null,11.77,1482.53,0,0]
["35239",128,126,"Lantana camara Bloomify™ Rose","řízek",null,1,"N","A",null,null,null,null,null,null,11.77,1482.53,0,{"$f":"R589*1.15","v":0}]
["42854",128,126,"Lantana camara Bloomify™ White","řízek","new",1,"N","A",null,null,null,null,null,null,11.77,1482.53,{"$f":"Q590*(J590+K590+L590+M590+N590+O590)","v":0},0]
["36908",84,84,"Lantana camara Lucky™ Peach","řízek",null,2,"N","A",null,null,null,null,null,null,16.579999999999998,1392.99,0,0]
["36908",128,126,"Lantana camara Lucky™ Peach","řízek",null,1,"N","A",null,null,null,null,null,null,11.11,1399.74,0,0]
["37719",84,84,"Lantana camara Lucky™ Pink","řízek","new",2,"N","A",null,null,null,null,null,null,16.579999999999998,1392.99,0,0]
["37719",128,126,"Lantana camara Lucky™ Pink","řízek","new",1,"N","A",null,null,null,null,null,null,11.11,1399.74,0,0]
["17499",84,84,"Lantana camara Lucky™ Pot of Gold","řízek",null,2,"N","A",null,null,null,null,null,null,16.579999999999998,1392.99,0,0]
["17499",128,126,"Lantana camara Lucky™ Pot of Gold","řízek",null,1,"N","A",null,null,null,null,null,null,11.11,1399.74,0,0]
["17501",84,84,"Lantana camara Lucky™ Red Flame","řízek",null,2,"N","A",null,null,null,null,null,null,16.579999999999998,1392.99,0,0]
["17501",128,126,"Lantana camara Lucky™ Red Flame","řízek",null,1,"N","A",null,null,null,null,null,null,11.11,1399.74,0,0]
["17502",84,84,"Lantana camara Lucky™ Rose Sunrise","řízek",null,2,"N","A",null,null,null,null,null,null,16.579999999999998,1392.99,0,0]
["17502",128,126,"Lantana camara Lucky™ Rose Sunrise","řízek",null,1,"N","A",null,null,null,null,null,null,11.11,1399.74,0,0]
["41493",84,84,"Lantana camara Lucky™ White Impr.","řízek","new",2,"N","A",null,null,null,null,null,null,16.579999999999998,1392.99,0,0]
["41493",128,126,"Lantana camara Lucky™ White Impr.","řízek","new",1,"N","A",null,null,null,null,null,null,11.11,1399.74,0,0]
["17504",84,84,"Lantana camara Lucky™ Yellow","řízek",null,2,"N","A",null,null,null,null,null,null,16.579999999999998,1392.99,0,0]
["17504",128,126,"Lantana camara Lucky™ Yellow","řízek",null,1,"N","A",null,null,null,null,null,null,11.11,1399.74,0,0]
["41489",128,126,"Lantana camara Shamrock Light Yellow","řízek","new",1,"N","A",null,null,null,null,null,null,11.66,1468.73,0,0]
["42853",128,126,"Lantana camara Shamrock Orange Flame","řízek","new",1,"N","A",null,null,null,null,null,null,11.66,1468.73,0,0]
["41491",128,126,"Lantana camara Shamrock Peach","řízek","new",1,"N","A",null,null,null,null,null,null,11.66,1468.73,0,0]
["42851",128,126,"Lantana camara Shamrock Red","řízek","new",1,"N","A",null,null,null,null,null,null,11.66,1468.73,0,0]
["37720",128,126,"Lantana camara Shamrock Rose","řízek","new",1,"N","A",null,null,null,null,null,null,11.66,1468.73,0,0]
["42852",128,126,"Lantana camara Shamrock Rose Gold","řízek","new",1,"N","A",null,null,null,null,null,null,11.66,1468.73,0,0]
["36303",180,178,"Lobelia erinus Bahari Blue","řízek",null,1,"N","A",null,null,null,null,null,null,8.2799999999999994,1473.36,0,0]
["10867",510,500,"Lobelia erinus Crystal Palace","semenáč",null,16,"N",null,null,null,null,null,null,null,1.59,794.54,0,0]
["16382",180,178,"Lobelia erinus Hot® Blue","řízek",null,1,"N","A",null,null,null,null,null,null,9.92,1765.12,0,0]
["17506",180,178,"Lobelia erinus Hot® Waterblue","řízek",null,1,"N","A",null,null,null,null,null,null,9.92,1765.12,0,0]
["17507",180,178,"Lobelia erinus Hot® White","řízek",null,1,"N","A",null,null,null,null,null,null,9.92,1765.12,0,0]
["10869",510,500,"Lobelia erinus Palace Blue Eye","semenáč",null,16,"N",null,null,null,null,null,null,null,1.59,794.54,0,0]
["10871",510,500,"Lobelia erinus Palace White","semenáč",null,16,"N",null,null,null,null,null,null,null,1.59,794.54,0,0]
["10874",510,500,"Lobelia erinus pendula Regatta Lilac","semenáč",null,16,"N",null,null,null,null,null,null,null,1.59,794.54,0,0]
["10876",510,500,"Lobelia erinus pendula Regatta Midnight Blue","semenáč",null,16,"N",null,null,null,null,null,null,null,1.59,794.54,0,0]
["10880",510,500,"Lobelia erinus pendula Regatta Mix","semenáč",null,16,"N",null,null,null,null,null,null,null,1.59,794.54,0,0]
["10877",510,500,"Lobelia erinus pendula Regatta Rose","semenáč",null,16,"N",null,null,null,null,null,null,null,1.59,794.54,0,0]
["10878",510,500,"Lobelia erinus pendula Regatta Sky Blue","semenáč",null,16,"N",null,null,null,null,null,null,null,1.59,794.54,0,0]
["10879",510,500,"Lobelia erinus pendula Regatta White","semenáč",null,16,"N",null,null,null,null,null,null,null,1.59,794.54,0,0]
["30027",288,284,"Lobelia erinus Rapid Blue","semenáč",null,16,"N",null,null,null,null,null,null,null,2.34,664.53,0,0]
["30027",510,500,"Lobelia erinus Rapid Blue","semenáč",null,16,"N",null,null,null,null,null,null,null,1.67,832.87,0,0]
["10861",510,500,"Lobelia erinus Riviera Lilac","semenáč",null,16,"N",null,null,null,null,null,null,null,1.59,794.54,0,0]
["10862",510,500,"Lobelia erinus Riviera Marine Blue","semenáč",null,16,"N",null,null,null,null,null,null,null,1.59,794.54,0,0]
["10863",510,500,"Lobelia erinus Riviera Midnight Blue","semenáč",null,16,"N",null,null,null,null,null,null,null,1.59,794.54,0,0]
["38265",510,500,"Lobelia erinus Riviera Mix","semenáč",null,16,"N",null,null,null,null,null,null,null,1.59,794.54,0,0]
["10864",510,500,"Lobelia erinus Riviera Rose","semenáč",null,16,"N",null,null,null,null,null,null,null,1.59,794.54,0,0]
["10858",510,500,"Lobelia erinus Riviera Sky Blue","semenáč",null,16,"N",null,null,null,null,null,null,null,1.59,794.54,0,0]
["37788",180,178,"Lobelia erinus Springs™ Dark Blue Impr.","řízek","new",1,"N","A",null,null,null,null,null,null,8.3800000000000008,1490.9,0,0]
["19620",180,178,"Lobelia erinus Springs™ Lavender","řízek",null,1,"N","A",null,null,null,null,null,null,8.3800000000000008,1490.9,0,0]
["30535",180,178,"Lobelia erinus Springs™ Magenta","řízek",null,1,"N","A",null,null,null,null,null,null,8.3800000000000008,1490.9,0,0]
["31697",84,82,"Lobelia erinus Springs™ MixMasters® Blue Lagoon","řízek",null,3,"N","A",null,null,null,null,null,null,20.52,1682.66,0,0]
["19621",180,178,"Lobelia erinus Springs™ White","řízek",null,1,"N","A",null,null,null,null,null,null,8.3800000000000008,1490.9,0,0]
["13177",180,178,"Lobelia erinus Star® Blue","řízek",null,1,"N","A",null,null,null,null,null,null,8.85,1574.73,0,0]
["17534",180,178,"Lobelia erinus Star® White","řízek",null,1,"N","A",null,null,null,null,null,null,8.85,1574.73,0,0]
["30537",180,178,"Lobelia erinus Sweet Springs Blue","řízek",null,1,"N","A",null,null,null,null,null,null,8.3800000000000008,1490.9,0,0]
["30536",180,178,"Lobelia erinus Sweet Springs Dark Blue","řízek",null,1,"N","A",null,null,null,null,null,null,8.3800000000000008,1490.9,0,0]
["30538",180,178,"Lobelia erinus Sweet Springs Lavender","řízek",null,1,"N","A",null,null,null,null,null,null,8.3800000000000008,1490.9,0,0]
["41638",180,178,"Lobelia erinus Sweet Springs Pink","řízek","new",1,"N","A",null,null,null,null,null,null,8.3800000000000008,1490.9,0,0]
["36301",180,178,"Lobelia erinus Sweet Springs Purple","řízek",null,1,"N","A",null,null,null,null,null,null,8.3800000000000008,1490.9,0,0]
["37756",180,178,"Lobelia erinus Sweet Springs White Impr.","řízek","new",1,"N","A",null,null,null,null,null,null,8.3800000000000008,1490.9,0,0]
["10513",288,284,"Lobularia maritima Clear Crystal® Mix","semenáč",null,6,"N",null,null,null,null,null,null,null,2.87,815.89,0,0]
["16954",288,284,"Lobularia maritima Clear Crystal® Purple Shades","semenáč",null,6,"N",null,null,null,null,null,null,null,2.87,815.89,0,0]
["16955",288,284,"Lobularia maritima Clear Crystal® White","semenáč",null,6,"N",null,null,null,null,null,null,null,2.87,815.89,0,0]
["16955",510,500,"Lobularia maritima Clear Crystal® White","semenáč",null,6,"N",null,null,null,null,null,null,null,2.0499999999999998,1026.3499999999999,0,0]
["10521",510,500,"Lobularia maritima Easter Bonnet Deep Rose","semenáč",null,6,"N",null,null,null,null,null,null,null,1.69,847.47,0,0]
["19696",510,500,"Lobularia maritima Easter Bonnet Mix","semenáč",null,6,"N",null,null,null,null,null,null,null,1.69,847.47,0,0]
["10523",510,500,"Lobularia maritima Easter Bonnet Violet","semenáč",null,6,"N",null,null,null,null,null,null,null,1.69,847.47,0,0]
["10524",510,500,"Lobularia maritima Easter Bonnet White","semenáč",null,6,"N",null,null,null,null,null,null,null,1.69,847.47,0,0]
["37348",84,82,"Lobularia maritima Easy Breezy™ MixMasters® Heaven Scent™","řízek",null,3,"N","A",null,null,null,null,null,null,24.82,2035.58,0,{"$f":"R653*1.15","v":0}]
["36304",180,178,"Lobularia maritima Easy Breezy™ Pink","řízek",null,1,"N","A",null,null,null,null,null,null,10.8,1921.71,{"$f":"Q654*(J654+K654+L654+M654+N654+O654)","v":0},0]
["36531",180,178,"Lobularia maritima Easy Breezy™ Purple","řízek",null,1,"N","A",null,null,null,null,null,null,10.8,1921.71,0,0]
["36305",180,178,"Lobularia maritima Easy Breezy™ White","řízek",null,1,"N","A",null,null,null,null,null,null,10.8,1921.71,0,0]
["31314",128,126,"Lophospermum erubescens Lofos® Compact Pink","řízek",null,1,"N","A",null,null,null,null,null,null,14.18,1787.03,0,0]
["31315",128,126,"Lophospermum erubescens Lofos® Compact White","řízek",null,1,"N","A",null,null,null,null,null,null,14.18,1787.03,0,0]
["15379",128,126,"Lophospermum erubescens Lofos® Wine-Red","řízek",null,1,"N","A",null,null,null,null,null,null,14.18,1787.03,0,0]
["12607",180,178,"Lysimachia nummularia Goldilocks","řízek",null,1,"N",null,null,null,null,null,null,null,6.86,1220.5899999999999,0,0]
["18007",288,284,"Matthiola incana Hot Cakes Hot Rose","semenáč",null,1,"N",null,null,null,null,null,null,null,6.39,1814.27,0,0]
["18475",288,284,"Matthiola incana Hot Cakes Mix","semenáč",null,1,"N",null,null,null,null,null,null,null,6.39,1814.27,0,0]
["18005",288,284,"Matthiola incana Hot Cakes Pink","semenáč",null,1,"N",null,null,null,null,null,null,null,6.39,1814.27,0,0]
["18006",288,284,"Matthiola incana Hot Cakes Purple","semenáč",null,1,"N",null,null,null,null,null,null,null,6.39,1814.27,0,0]
["18008",288,284,"Matthiola incana Hot Cakes White","semenáč",null,1,"N",null,null,null,null,null,null,null,6.39,1814.27,0,0]
["41647",180,178,"Mecardonia procumbes Gold Flakes","řízek",null,1,"Y","A",null,null,null,null,null,null,10.029999999999999,1785.26,0,0]
["42314",84,84,"Mimulus aurantiacus Mai Tai Orange","řízek","new",1,"Y","A",null,null,null,null,null,null,18.61,1563.48,0,0]
["42315",84,84,"Mimulus aurantiacus Mai Tai Red","řízek","new",1,"Y","A",null,null,null,null,null,null,18.61,1563.48,0,0]
["38189",510,490,"Mimulus x hybrida Mystic Mix","semenáč",null,2,"N",null,null,null,null,null,null,null,2.44,1194.24,0,0]
["42225",180,178,"Muehlenbeckia complexa Golden Girl Gold","řízek","new",2,"Y","A",null,null,null,null,null,null,12.91,2298.59,0,0]
["36651",180,178,"Muehlenbeckia complexa Green","řízek",null,2,"Y",null,null,null,null,null,null,null,7.04,1253.73,0,0]
["31352",84,82,"Multi specie MixMasters® A grape fit","řízek",null,3,"Y","A",null,null,null,null,null,null,22.67,1858.67,0,0]
["37983",84,82,"Multi specie MixMasters® Baby Blush","řízek",null,3,"Y","A",null,null,null,null,null,null,22.67,1858.67,0,0]
["31351",84,82,"Multi specie MixMasters® Bejeweled","řízek",null,3,"Y","A",null,null,null,null,null,null,22.67,1858.67,0,0]
["34455",84,82,"Multi specie MixMasters® Circus Parade","řízek",null,3,"Y","A",null,null,null,null,null,null,22.67,1858.67,0,0]
["32873",84,82,"Multi specie MixMasters® Do you Lilac It Impr.","řízek",null,3,"Y","A",null,null,null,null,null,null,22.67,1858.67,0,0]
["34457",84,82,"Multi specie MixMasters® Fashionista","řízek",null,3,"Y","A",null,null,null,null,null,null,22.67,1858.67,0,0]
["34459",84,82,"Multi specie MixMasters® Power Play","řízek",null,3,"Y","A",null,null,null,null,null,null,22.67,1858.67,0,0]
["36389",84,82,"Multi specie MixMasters® Purple Rain","řízek",null,3,"Y","A",null,null,null,null,null,null,22.67,1858.67,0,0]
["31933",84,82,"Multi specie MixMasters® Sunny Black","řízek",null,3,"Y","A",null,null,null,null,null,null,22.67,1858.67,0,0]
["14956",180,175,"Nemesia fruticans Nuvo® Blue","řízek",null,1,"Y","A",null,null,null,null,null,null,8.99,1573.19,0,0]
["36175",180,175,"Nemesia fruticans Nuvo® Blue Bicolour","řízek",null,1,"Y","A",null,null,null,null,null,null,8.99,1573.19,0,0]
["36174",180,175,"Nemesia fruticans Nuvo® Burgundy Bicolour","řízek",null,1,"Y","A",null,null,null,null,null,null,8.99,1573.19,0,0]
["30540",180,175,"Nemesia fruticans Nuvo® Carmine","řízek",null,1,"Y","A",null,null,null,null,null,null,8.99,1573.19,0,0]
["31659",180,175,"Nemesia fruticans Nuvo® Pink Bicolour","řízek",null,1,"Y","A",null,null,null,null,null,null,8.99,1573.19,0,0]
["30542",180,175,"Nemesia fruticans Nuvo® Rose","řízek",null,1,"Y","A",null,null,null,null,null,null,8.99,1573.19,0,0]
["37743",180,175,"Nemesia fruticans Nuvo® Vanilla","řízek",null,1,"Y","A",null,null,null,null,null,null,8.99,1573.19,0,0]
["36176",180,175,"Nemesia fruticans Nuvo® Yellow Bicolour","řízek",null,1,"Y","A",null,null,null,null,null,null,8.99,1573.19,0,0]
["10901",510,400,"Nemesia strumosa Sundrops","semenáč",null,1,"N",null,null,null,null,null,null,null,3.05,1218.73,0,0]
["36098",180,175,"Nemesia strumosa Sunmesia Banana Swirl","řízek",null,1,"Y","A",null,null,null,null,null,null,10.73,1878.56,0,0]
["34088",180,175,"Nemesia strumosa Sunmesia Dark Red","řízek",null,1,"Y","A",null,null,null,null,null,null,10.73,1878.56,0,0]
["36283",180,175,"Nemesia strumosa Sunmesia Denim","řízek",null,1,"Y","A",null,null,null,null,null,null,10.73,1878.56,0,0]
["34089",180,175,"Nemesia strumosa Sunmesia White","řízek",null,1,"Y","A",null,null,null,null,null,null,10.73,1878.56,0,0]
["34090",180,175,"Nemesia strumosa Sunmesia Yellow","řízek",null,1,"Y","A",null,null,null,null,null,null,10.73,1878.56,0,0]
["17606",510,500,"Nicotiana x alata Cuba F1 Lime Deep","semenáč",null,1,"N",null,null,null,null,null,null,null,2.38,1190.6199999999999,0,0]
["17605",288,284,"Nicotiana x alata Cuba F1 Mix","semenáč",null,1,"N",null,null,null,null,null,null,null,2.98,845.96,0,0]
["17605",510,500,"Nicotiana x alata Cuba F1 Mix","semenáč",null,1,"N",null,null,null,null,null,null,null,2.38,1190.6199999999999,0,0]
["17607",510,500,"Nicotiana x alata Cuba F1 Red Bright","semenáč",null,1,"N",null,null,null,null,null,null,null,2.38,1190.6199999999999,0,0]
["17608",510,500,"Nicotiana x alata Cuba F1 Rose","semenáč",null,1,"N",null,null,null,null,null,null,null,2.38,1190.6199999999999,0,0]
["17609",510,500,"Nicotiana x alata Cuba F1 White","semenáč",null,1,"N",null,null,null,null,null,null,null,2.38,1190.6199999999999,0,0]
["41434",128,126,"Osteospermum ecklonis Dalina® Bright Purple","řízek","new",1,"N","A",null,null,null,null,null,null,10.14,1277.3900000000001,0,0]
["37631",128,126,"Osteospermum ecklonis Dalina® Compact Blue","řízek",null,1,"N","A",null,null,null,null,null,null,9.08,1144.46,0,0]
["32610",128,126,"Osteospermum ecklonis Dalina® Compact Lavender","řízek",null,1,"N","A",null,null,null,null,null,null,9.08,1144.46,0,0]
["36136",128,126,"Osteospermum ecklonis Dalina® Compact Orange Brique","řízek",null,1,"N","A",null,null,null,null,null,null,9.08,1144.46,0,0]
["20696",128,126,"Osteospermum ecklonis Dalina® Compact Pink","řízek",null,1,"N","A",null,null,null,null,null,null,9.08,1144.46,0,0]
["41437",128,126,"Osteospermum ecklonis Dalina® Compact Pink Impr.","řízek","new",1,"N","A",null,null,null,null,null,null,9.08,1144.46,0,0]
["34307",128,126,"Osteospermum ecklonis Dalina® Compact Purple","řízek",null,1,"N","A",null,null,null,null,null,null,9.08,1144.46,0,0]
["31645",128,126,"Osteospermum ecklonis Dalina® Compact Rose White","řízek",null,1,"N","A",null,null,null,null,null,null,9.08,1144.46,0,0]
["31650",128,126,"Osteospermum ecklonis Dalina® Compact White","řízek",null,1,"N","A",null,null,null,null,null,null,9.08,1144.46,0,0]
["41450",128,126,"Osteospermum ecklonis Dalina® Compact White Impr.","řízek","new",1,"N","A",null,null,null,null,null,null,9.08,1144.46,0,0]
["30550",128,126,"Osteospermum ecklonis Dalina® Compact White Pink Blush","řízek",null,1,"N","A",null,null,null,null,null,null,9.08,1144.46,0,0]
["41447",128,126,"Osteospermum ecklonis Dalina® Cream","řízek","new",1,"N","A",null,null,null,null,null,null,10.14,1277.3900000000001,0,0]
["37646",128,126,"Osteospermum ecklonis Dalina® Dark Red","řízek",null,1,"N","A",null,null,null,null,null,null,10.14,1277.3900000000001,0,0]
["41420",128,126,"Osteospermum ecklonis Dalina® Deep Yellow","řízek",null,1,"N","A",null,null,null,null,null,null,10.14,1277.3900000000001,0,0]
["35937",128,126,"Osteospermum ecklonis Dalina® Dolores","řízek",null,1,"N","A",null,null,null,null,null,null,10.14,1277.3900000000001,0,0]
["37634",128,126,"Osteospermum ecklonis Dalina® Double Enrico","řízek",null,1,"N","A",null,null,null,null,null,null,11.35,1430.55,0,0]
["35968",128,126,"Osteospermum ecklonis Dalina® Double Francisco","řízek",null,1,"N","A",null,null,null,null,null,null,11.35,1430.55,0,{"$f":"R717*1.15","v":0}]
["41431",128,126,"Osteospermum ecklonis Dalina® Double Pedro Impr.","řízek","new",1,"N","A",null,null,null,null,null,null,11.35,1430.55,{"$f":"Q718*(J718+K718+L718+M718+N718+O718)","v":0},0]
["31299",128,126,"Osteospermum ecklonis Dalina® Elena","řízek",null,1,"N","A",null,null,null,null,null,null,10.14,1277.3900000000001,0,0]
["35946",128,126,"Osteospermum ecklonis Dalina® Evita","řízek",null,1,"N","A",null,null,null,null,null,null,10.14,1277.3900000000001,0,0]
["36782",128,126,"Osteospermum ecklonis Dalina® Felicity","řízek",null,1,"N","A",null,null,null,null,null,null,10.14,1277.3900000000001,0,0]
["36784",128,126,"Osteospermum ecklonis Dalina® Inez","řízek",null,1,"N","A",null,null,null,null,null,null,10.14,1277.3900000000001,0,0]
["37636",128,126,"Osteospermum ecklonis Dalina® Orange","řízek",null,1,"N","A",null,null,null,null,null,null,10.14,1277.3900000000001,0,0]
["38153",128,126,"Osteospermum ecklonis Dalina® Pink Bicolour","řízek","new",1,"N","A",null,null,null,null,null,null,10.14,1277.3900000000001,0,0]
["36786",128,126,"Osteospermum ecklonis Dalina® Purple","řízek",null,1,"N","A",null,null,null,null,null,null,10.14,1277.3900000000001,0,0]
["36792",128,126,"Osteospermum ecklonis Dalina® Purple Outback","řízek",null,1,"N","A",null,null,null,null,null,null,10.14,1277.3900000000001,0,0]
["36787",128,126,"Osteospermum ecklonis Dalina® Purple Reflection","řízek",null,1,"N","A",null,null,null,null,null,null,10.14,1277.3900000000001,0,0]
["30545",128,126,"Osteospermum ecklonis Dalina® Special Blue Eyed Beauty","řízek",null,1,"N","A",null,null,null,null,null,null,10.19,1284.29,0,0]
["34598",128,126,"Osteospermum ecklonis Dalina® Special Pink Eyed Beauty","řízek",null,1,"N","A",null,null,null,null,null,null,10.19,1284.29,0,0]
["36137",128,126,"Osteospermum ecklonis Dalina® Special Sunshine Beauty","řízek",null,1,"N","A",null,null,null,null,null,null,10.19,1284.29,0,0]
["37648",128,126,"Osteospermum ecklonis Dalina® White","řízek",null,1,"N","A",null,null,null,null,null,null,10.14,1277.3900000000001,0,0]
["36791",128,126,"Osteospermum ecklonis Dalina® Yellow","řízek",null,1,"N","A",null,null,null,null,null,null,10.14,1277.3900000000001,0,0]
["41446",128,126,"Osteospermum ecklonis Dalina® Yellow Impr.","řízek","new",1,"N","A",null,null,null,null,null,null,10.14,1277.3900000000001,0,0]
["37654",128,126,"Osteospermum ecklonis Dalina® Yellow Sunrise","řízek",null,1,"N","A",null,null,null,null,null,null,10.14,1277.3900000000001,0,0]
["38180",128,126,"Osteospermum ecklonis Voltage™ Gold","řízek","new",1,"N","A",null,null,null,null,null,null,11.35,1430.09,0,0]
["17516",128,126,"Osteospermum ecklonis Voltage™ Yellow","řízek",null,1,"N","A",null,null,null,null,null,null,11.35,1430.09,0,0]
["35720",128,126,"Petchoa interspecific BeautiCal® Bordeaux","řízek",null,1,"N","A",null,null,null,null,null,null,12.55,1581.42,0,0]
["35721",128,126,"Petchoa interspecific BeautiCal® Caramel Yellow","řízek",null,1,"N","A",null,null,null,null,null,null,12.55,1581.42,0,0]
["35722",128,126,"Petchoa interspecific BeautiCal® Cinnamon","řízek",null,1,"N","A",null,null,null,null,null,null,12.55,1581.42,0,0]
["35723",128,126,"Petchoa interspecific BeautiCal® French Vanilla","řízek",null,1,"N","A",null,null,null,null,null,null,12.55,1581.42,0,0]
["38212",128,126,"Petchoa interspecific BeautiCal® Pearl White","řízek","new",1,"N","A",null,null,null,null,null,null,12.55,1581.42,0,0]
["38138",128,126,"Petchoa interspecific BeautiCal® Purple Dawn","řízek","new",1,"N","A",null,null,null,null,null,null,12.55,1581.42,0,0]
["41648",128,126,"Petchoa interspecific BeautiCal® Red Maple","řízek","new",1,"N","A",null,null,null,null,null,null,12.55,1581.42,0,0]
["35724",128,126,"Petchoa interspecific BeautiCal® Sunray Pink","řízek",null,1,"N","A",null,null,null,null,null,null,12.55,1581.42,0,0]
["38139",128,126,"Petchoa interspecific BeautiCal® Sunset Orange","řízek","new",1,"N","A",null,null,null,null,null,null,12.55,1581.42,0,0]
["34125",128,126,"Petunia grandiflora Amore® Fiesta","řízek",null,1,"N","A",null,null,null,null,null,null,11.11,1399.28,0,0]
["34126",128,126,"Petunia grandiflora Amore® Joy","řízek",null,1,"N","A",null,null,null,null,null,null,11.11,1399.28,0,0]
["36287",128,126,"Petunia grandiflora Amore® King of Hearts","řízek",null,1,"N","A",null,null,null,null,null,null,11.11,1399.28,0,0]
["36285",128,126,"Petunia grandiflora Amore® Pink Heart","řízek",null,1,"N","A",null,null,null,null,null,null,11.11,1399.28,0,0]
["34107",128,126,"Petunia grandiflora Amore® Queen of Hearts","řízek",null,1,"N","A",null,null,null,null,null,null,11.11,1399.28,0,0]
["37519",128,126,"Petunia grandiflora Bee’s Knees Yellow","řízek",null,1,"N","A",null,null,null,null,null,null,10.92,1376.28,0,0]
["31468",128,126,"Petunia grandiflora Cascadias® Indian Summer","řízek",null,1,"N","A",null,null,null,null,null,null,11.8,1486.67,0,0]
["35242",128,126,"Petunia grandiflora Dolly Dots Aries","řízek",null,1,"N","A",null,null,null,null,null,null,11.3,1424.12,0,0]
["41843",128,126,"Petunia grandiflora Dolly Dots Magenta Comet","řízek","new",1,"N","A",null,null,null,null,null,null,11.3,1424.12,0,0]
["37272",128,126,"Petunia grandiflora Dolly Dots Magenta Mambo","řízek",null,1,"N","A",null,null,null,null,null,null,11.3,1424.12,0,0]
["37722",128,126,"Petunia grandiflora Dolly Dots Supernova","řízek","new",1,"N","A",null,null,null,null,null,null,11.3,1424.12,0,0]
["35243",128,126,"Petunia grandiflora Dolly Dots Virgo","řízek",null,1,"N","A",null,null,null,null,null,null,11.3,1424.12,0,0]
["19736",128,126,"Petunia grandiflora Fanfare® Blue","řízek",null,1,"N","A",null,null,null,null,null,null,11.41,1437.91,0,0]
["19744",128,126,"Petunia grandiflora Fanfare® Crème de Cassis","řízek",null,1,"N","A",null,null,null,null,null,null,11.41,1437.91,0,0]
["35007",128,126,"Petunia grandiflora Fanfare® Deep Yellow","řízek",null,1,"N","A",null,null,null,null,null,null,11.41,1437.91,0,0]
["19745",128,126,"Petunia grandiflora Fanfare® Hot Rose","řízek",null,1,"N","A",null,null,null,null,null,null,11.41,1437.91,0,0]
["35008",128,126,"Petunia grandiflora Fanfare® Rose Morn","řízek",null,1,"N","A",null,null,null,null,null,null,11.41,1437.91,0,0]
["30129",128,126,"Petunia grandiflora Fanfare® Royal Purple","řízek",null,1,"N","A",null,null,null,null,null,null,11.41,1437.91,0,0]
["36891",128,126,"Petunia grandiflora Fanfare® Salmon","řízek",null,1,"N","A",null,null,null,null,null,null,11.41,1437.91,0,0]
["31344",128,126,"Petunia grandiflora Fanfare® Sky Blue","řízek",null,1,"N","A",null,null,null,null,null,null,11.41,1437.91,0,0]
["18131",128,126,"Petunia grandiflora Fanfare® White","řízek",null,1,"N","A",null,null,null,null,null,null,11.41,1437.91,0,0]
["31788",128,126,"Petunia grandiflora GO!Tunia® Black","řízek",null,1,"N","A",null,null,null,null,null,null,10.62,1337.64,0,0]
["37759",128,126,"Petunia grandiflora GO!Tunia® Blue Vein","řízek",null,1,"N","A",null,null,null,null,null,null,10.25,1291.6500000000001,0,0]
["18772",128,126,"Petunia grandiflora GO!Tunia® Burgundy","řízek",null,1,"N","A",null,null,null,null,null,null,10.25,1291.6500000000001,0,0]
["32883",128,126,"Petunia grandiflora GO!Tunia® Burgundy Star","řízek",null,1,"N","A",null,null,null,null,null,null,10.25,1291.6500000000001,0,0]
["37751",128,126,"Petunia grandiflora GO!Tunia® Cosmic Pink","řízek",null,1,"N","A",null,null,null,null,null,null,10.25,1291.6500000000001,0,0]
["36922",128,126,"Petunia grandiflora GO!Tunia® Cosmic Purple","řízek",null,1,"N","A",null,null,null,null,null,null,10.25,1291.6500000000001,0,0]
["36923",128,126,"Petunia grandiflora GO!Tunia® French Kiss","řízek",null,1,"N","A",null,null,null,null,null,null,10.25,1291.6500000000001,0,0]
["38214",128,126,"Petunia grandiflora GO!Tunia® Hello Yellow","řízek",null,1,"N","A",null,null,null,null,null,null,10.98,1383.64,0,0]
["36925",128,126,"Petunia grandiflora GO!Tunia® Lucky Lilac","řízek",null,1,"N","A",null,null,null,null,null,null,10.25,1291.6500000000001,0,0]
["36900",128,126,"Petunia grandiflora GO!Tunia® Neon Pink","řízek",null,1,"N","A",null,null,null,null,null,null,10.25,1291.6500000000001,0,0]
["37760",128,126,"Petunia grandiflora GO!Tunia® Pink","řízek",null,1,"N","A",null,null,null,null,null,null,10.25,1291.6500000000001,0,0]
["32927",128,126,"Petunia grandiflora GO!Tunia® Pink Vein","řízek",null,1,"N","A",null,null,null,null,null,null,10.25,1291.6500000000001,0,0]
["20632",128,126,"Petunia grandiflora GO!Tunia® Purple Vein","řízek",null,1,"N","A",null,null,null,null,null,null,10.25,1291.6500000000001,0,0]
["37478",128,126,"Petunia grandiflora GO!Tunia® Red","řízek","new",1,"N","A",null,null,null,null,null,null,10.25,1291.6500000000001,0,0]
["41841",128,126,"Petunia grandiflora GO!Tunia® Sky Blue","řízek","new",1,"N","A",null,null,null,null,null,null,10.25,1291.6500000000001,0,{"$f":"R781*1.15","v":0}]
["30453",128,126,"Petunia grandiflora GO!Tunia® Tiger Stripe","řízek",null,1,"N","A",null,null,null,null,null,null,10.25,1291.6500000000001,{"$f":"Q782*(J782+K782+L782+M782+N782+O782)","v":0},0]
["37758",128,126,"Petunia grandiflora GO!Tunia® Violet Vein","řízek",null,1,"N","A",null,null,null,null,null,null,10.25,1291.6500000000001,0,0]
["37278",128,126,"Petunia grandiflora GO!Tunia® White","řízek",null,1,"N","A",null,null,null,null,null,null,10.25,1291.6500000000001,0,0]
["35054",128,126,"Petunia grandiflora Mystical® Midnight Gold","řízek",null,1,"N","A",null,null,null,null,null,null,11.75,1480.69,0,0]
["30147",288,284,"Petunia grandiflora Pacta Parade Blue","semenáč",null,1,"N",null,null,null,null,null,null,null,2.69,764.05,0,0]
["30147",510,500,"Petunia grandiflora Pacta Parade Blue","semenáč",null,1,"N",null,null,null,null,null,null,null,1.99,993.49,0,0]
["31515",288,284,"Petunia grandiflora Pacta Parade Burgundy","semenáč",null,1,"N",null,null,null,null,null,null,null,2.69,764.05,0,0]
["31515",510,500,"Petunia grandiflora Pacta Parade Burgundy","semenáč",null,1,"N",null,null,null,null,null,null,null,1.99,993.49,0,0]
["34490",288,284,"Petunia grandiflora Pacta Parade Burgundy Picotee","semenáč",null,1,"N",null,null,null,null,null,null,null,2.69,764.05,0,0]
["34490",510,500,"Petunia grandiflora Pacta Parade Burgundy Picotee","semenáč",null,1,"N",null,null,null,null,null,null,null,1.99,993.49,0,0]
["30149",288,284,"Petunia grandiflora Pacta Parade Mix","semenáč",null,1,"N",null,null,null,null,null,null,null,2.69,764.05,0,0]
["30149",510,500,"Petunia grandiflora Pacta Parade Mix","semenáč",null,1,"N",null,null,null,null,null,null,null,1.99,993.49,0,0]
["30151",288,284,"Petunia grandiflora Pacta Parade Pink-Rose","semenáč",null,1,"N",null,null,null,null,null,null,null,2.69,764.05,0,0]
["30151",510,500,"Petunia grandiflora Pacta Parade Pink-Rose","semenáč",null,1,"N",null,null,null,null,null,null,null,1.99,993.49,0,0]
["30153",288,284,"Petunia grandiflora Pacta Parade Red","semenáč",null,1,"N",null,null,null,null,null,null,null,2.69,764.05,0,0]
["30153",510,500,"Petunia grandiflora Pacta Parade Red","semenáč",null,1,"N",null,null,null,null,null,null,null,1.99,993.49,0,0]
["34492",288,284,"Petunia grandiflora Pacta Parade Red Picotee","semenáč",null,1,"N",null,null,null,null,null,null,null,2.69,764.05,0,0]
["34492",510,500,"Petunia grandiflora Pacta Parade Red Picotee","semenáč",null,1,"N",null,null,null,null,null,null,null,1.99,993.49,0,0]
["31517",288,284,"Petunia grandiflora Pacta Parade Rose Morn","semenáč",null,1,"N",null,null,null,null,null,null,null,2.69,764.05,0,0]
["31517",510,500,"Petunia grandiflora Pacta Parade Rose Morn","semenáč",null,1,"N",null,null,null,null,null,null,null,1.99,993.49,0,0]
["34493",288,284,"Petunia grandiflora Pacta Parade Rose Picotee","semenáč",null,1,"N",null,null,null,null,null,null,null,2.69,764.05,0,0]
["34493",510,500,"Petunia grandiflora Pacta Parade Rose Picotee","semenáč",null,1,"N",null,null,null,null,null,null,null,1.99,993.49,0,0]
["30155",288,284,"Petunia grandiflora Pacta Parade Salmon","semenáč",null,1,"N",null,null,null,null,null,null,null,2.69,764.05,0,0]
["30155",510,500,"Petunia grandiflora Pacta Parade Salmon","semenáč",null,1,"N",null,null,null,null,null,null,null,1.99,993.49,0,0]
["43346",288,284,"Petunia grandiflora Pacta Parade Violet","semenáč","new",1,"N",null,null,null,null,null,null,null,2.69,764.05,0,0]
["43346",510,500,"Petunia grandiflora Pacta Parade Violet","semenáč","new",1,"N",null,null,null,null,null,null,null,1.99,993.49,0,0]
["30157",288,284,"Petunia grandiflora Pacta Parade White","semenáč",null,1,"N",null,null,null,null,null,null,null,2.69,764.05,0,0]
["30157",510,500,"Petunia grandiflora Pacta Parade White","semenáč",null,1,"N",null,null,null,null,null,null,null,1.99,993.49,0,0]
["10989",510,500,"Petunia grandiflora Parade F1 Blue Vein","semenáč",null,1,"N",null,null,null,null,null,null,null,1.93,966.12,0,0]
["10986",510,500,"Petunia grandiflora Parade F1 Crimson Star","semenáč",null,1,"N",null,null,null,null,null,null,null,1.93,966.12,0,0]
["10985",510,500,"Petunia grandiflora Parade F1 Deep Rose","semenáč",null,1,"N",null,null,null,null,null,null,null,1.93,966.12,0,0]
["10993",510,500,"Petunia grandiflora Parade F1 Picotee Blue","semenáč",null,1,"N",null,null,null,null,null,null,null,1.93,966.12,0,0]
["10997",288,284,"Petunia grandiflora Parade F1 Picotee Mix","semenáč",null,1,"N",null,null,null,null,null,null,null,2.44,693.56,0,0]
["10997",510,500,"Petunia grandiflora Parade F1 Picotee Mix","semenáč",null,1,"N",null,null,null,null,null,null,null,1.93,966.12,0,0]
["10994",510,500,"Petunia grandiflora Parade F1 Picotee Red","semenáč",null,1,"N",null,null,null,null,null,null,null,1.93,966.12,0,0]
["10995",510,500,"Petunia grandiflora Parade F1 Picotee Rose","semenáč",null,1,"N",null,null,null,null,null,null,null,1.93,966.12,0,0]
["13263",510,500,"Petunia grandiflora Parade F1 Picotee Velvet","semenáč",null,1,"N",null,null,null,null,null,null,null,1.93,966.12,0,0]
["10987",510,500,"Petunia grandiflora Parade F1 Red Star","semenáč",null,1,"N",null,null,null,null,null,null,null,1.93,966.12,0,0]
["10988",510,500,"Petunia grandiflora Parade F1 Rose Star","semenáč",null,1,"N",null,null,null,null,null,null,null,1.93,966.12,0,0]
["12876",288,284,"Petunia grandiflora Parade F1 Star Mix","semenáč",null,1,"N",null,null,null,null,null,null,null,2.44,693.56,0,0]
["12876",510,500,"Petunia grandiflora Parade F1 Star Mix","semenáč",null,1,"N",null,null,null,null,null,null,null,1.93,966.12,0,0]
["10992",288,284,"Petunia grandiflora Parade F1 Total Mix","semenáč",null,1,"N",null,null,null,null,null,null,null,2.44,693.56,0,0]
["10992",510,500,"Petunia grandiflora Parade F1 Total Mix","semenáč",null,1,"N",null,null,null,null,null,null,null,1.93,966.12,0,0]
["13949",288,284,"Petunia grandiflora Parade F1 Vein Mix","semenáč",null,1,"N",null,null,null,null,null,null,null,2.44,693.56,0,0]
["13949",510,500,"Petunia grandiflora Parade F1 Vein Mix","semenáč",null,1,"N",null,null,null,null,null,null,null,1.93,966.12,0,0]
["10998",510,500,"Petunia grandiflora Parade F1 Yellow","semenáč",null,1,"N",null,null,null,null,null,null,null,1.93,966.12,0,0]
["10973",510,500,"Petunia grandiflora Parade Plus F1 Blue","semenáč",null,1,"N",null,null,null,null,null,null,null,1.93,966.12,0,0]
["10981",510,500,"Petunia grandiflora Parade Plus F1 Mix","semenáč",null,1,"N",null,null,null,null,null,null,null,1.93,966.12,0,0]
["10976",510,500,"Petunia grandiflora Parade Plus F1 Red","semenáč",null,1,"N",null,null,null,null,null,null,null,1.93,966.12,0,0]
["10975",510,500,"Petunia grandiflora Parade Plus F1 Rose-Pink","semenáč",null,1,"N",null,null,null,null,null,null,null,1.93,966.12,0,0]
["10978",510,500,"Petunia grandiflora Parade Plus F1 Salmon","semenáč",null,1,"N",null,null,null,null,null,null,null,1.93,966.12,0,0]
["10979",510,500,"Petunia grandiflora Parade Plus F1 Velvet","semenáč",null,1,"N",null,null,null,null,null,null,null,1.93,966.12,0,0]
["10980",510,500,"Petunia grandiflora Parade Plus F1 White","semenáč",null,1,"N",null,null,null,null,null,null,null,1.93,966.12,0,0]
["32882",128,126,"Petunia grandiflora Specials Picotee Blue","řízek",null,1,"N",null,null,null,null,null,null,null,8.98,1131.1199999999999,0,0]
["32625",128,126,"Petunia grandiflora Specials Picotee Purple","řízek",null,1,"N",null,null,null,null,null,null,null,8.98,1131.1199999999999,0,0]
["19650",128,126,"Petunia grandiflora Specials Rose Stardust","řízek",null,1,"N",null,null,null,null,null,null,null,8.98,1131.1199999999999,0,0]
["12635",128,126,"Petunia grandiflora Surfinia® Blue","řízek",null,1,"N","A",null,null,null,null,null,null,10.15,1278.31,0,0]
["35381",128,126,"Petunia grandiflora Surfinia® Blue Ocean","řízek",null,1,"N","A",null,null,null,null,null,null,10.15,1278.31,0,0]
["12636",128,126,"Petunia grandiflora Surfinia® Blue Vein","řízek",null,1,"N","A",null,null,null,null,null,null,10.15,1278.31,0,0]
["15149",128,126,"Petunia grandiflora Surfinia® Burgundy Wine Red","řízek",null,1,"N","A",null,null,null,null,null,null,10.15,1278.31,0,0]
["16402",128,126,"Petunia grandiflora Surfinia® Compact Dark Red","řízek",null,1,"N","A",null,null,null,null,null,null,10.15,1278.31,0,0]
["17007",128,126,"Petunia grandiflora Surfinia® Compact Purple Vein","řízek",null,1,"N","A",null,null,null,null,null,null,10.15,1278.31,0,0]
["35382",128,126,"Petunia grandiflora Surfinia® Coral Morn","řízek",null,1,"N","A",null,null,null,null,null,null,10.15,1278.31,0,0]
["30131",128,126,"Petunia grandiflora Surfinia® Deep Red","řízek",null,1,"N","A",null,null,null,null,null,null,10.15,1278.31,0,{"$f":"R845*1.15","v":0}]
["15622",128,126,"Petunia grandiflora Surfinia® Giant Blue","řízek",null,1,"N","A",null,null,null,null,null,null,10.15,1278.31,{"$f":"Q846*(J846+K846+L846+M846+N846+O846)","v":0},0]
["13835",128,126,"Petunia grandiflora Surfinia® Giant Purple","řízek",null,1,"N","A",null,null,null,null,null,null,10.15,1278.31,0,0]
["31273",128,126,"Petunia grandiflora Surfinia® Heavenly Blue","řízek",null,1,"N","A",null,null,null,null,null,null,10.15,1278.31,0,0]
["14766",128,126,"Petunia grandiflora Surfinia® Hot Pink","řízek",null,1,"N","A",null,null,null,null,null,null,10.15,1278.31,0,0]
["15152",128,126,"Petunia grandiflora Surfinia® Hot Red","řízek",null,1,"N","A",null,null,null,null,null,null,10.15,1278.31,0,0]
["42848",128,126,"Petunia grandiflora Surfinia® Lagoon Blue Star","řízek","new",1,"N","A",null,null,null,null,null,null,10.15,1278.31,0,0]
["41847",128,126,"Petunia grandiflora Surfinia® Light Yellow","řízek","new",1,"N","A",null,null,null,null,null,null,10.15,1278.31,0,0]
["13427",128,126,"Petunia grandiflora Surfinia® Lime","řízek",null,1,"N","A",null,null,null,null,null,null,10.15,1278.31,0,0]
["12640",128,126,"Petunia grandiflora Surfinia® Pink Vein","řízek",null,1,"N","A",null,null,null,null,null,null,10.15,1278.31,0,0]
["12641",128,126,"Petunia grandiflora Surfinia® Purple","řízek",null,1,"N","A",null,null,null,null,null,null,10.15,1278.31,0,0]
["13118",128,126,"Petunia grandiflora Surfinia® Sky Blue","řízek",null,1,"N","A",null,null,null,null,null,null,10.15,1278.31,0,0]
["37361",128,126,"Petunia grandiflora Surfinia® Snow","řízek",null,1,"N","A",null,null,null,null,null,null,10.15,1278.31,0,0]
["16404",128,126,"Petunia grandiflora Surfinia® Sweet Pink","řízek",null,1,"N","A",null,null,null,null,null,null,10.15,1278.31,0,0]
["41848",128,126,"Petunia grandiflora Surfinia® Violet Impr.","řízek","new",1,"N","A",null,null,null,null,null,null,10.15,1278.31,0,0]
["12645",128,126,"Petunia grandiflora Surfinia® White","řízek",null,1,"N","A",null,null,null,null,null,null,10.15,1278.31,0,0]
["34123",128,126,"Petunia grandiflora Viva® Austria Yellow","řízek",null,1,"N","A",null,null,null,null,null,null,10.25,1291.6500000000001,0,0]
["34091",128,126,"Petunia grandiflora Viva® Baroque Pink","řízek",null,1,"N","A",null,null,null,null,null,null,10.25,1291.6500000000001,0,0]
["18118",128,126,"Petunia grandiflora Viva® Blue","řízek",null,1,"N","A",null,null,null,null,null,null,10.62,1337.64,0,0]
["42637",128,126,"Petunia grandiflora Viva® Blue Picotee","řízek","new",1,"N","A",null,null,null,null,null,null,10.25,1291.6500000000001,0,0]
["19645",128,126,"Petunia grandiflora Viva® Blue Stardust","řízek",null,1,"N","A",null,null,null,null,null,null,10.25,1291.6500000000001,0,0]
["14561",128,126,"Petunia grandiflora Viva® Double Pink Frizzle","řízek",null,1,"N","A",null,null,null,null,null,null,10.38,1307.74,0,0]
["18784",128,126,"Petunia grandiflora Viva® Double Purple Vein","řízek",null,1,"N","A",null,null,null,null,null,null,10.38,1307.74,0,0]
["34329",128,126,"Petunia grandiflora Viva® Hot Pink","řízek",null,1,"N","A",null,null,null,null,null,null,10.62,1337.64,0,0]
["30456",128,126,"Petunia grandiflora Viva® Purple","řízek",null,1,"N","A",null,null,null,null,null,null,10.25,1291.6500000000001,0,0]
["37527",128,126,"Petunia grandiflora Viva® Purple Vein","řízek",null,1,"N","A",null,null,null,null,null,null,10.25,1291.6500000000001,0,0]
["37526",128,126,"Petunia grandiflora Viva® Red","řízek",null,1,"N","A",null,null,null,null,null,null,10.25,1291.6500000000001,0,0]
["14986",128,126,"Petunia grandiflora Viva® Snowy White","řízek",null,1,"N","A",null,null,null,null,null,null,10.25,1291.6500000000001,0,0]
["16761",288,284,"Petunia milliflora Picobella F1 Mix","semenáč",null,1,"N",null,null,null,null,null,null,null,3.16,898.83,0,0]
["16761",510,500,"Petunia milliflora Picobella F1 Mix","semenáč",null,1,"N",null,null,null,null,null,null,null,2.27,1134.04,0,0]
["18570",510,500,"Petunia milliflora Picobella F1 Rose Morn","semenáč",null,1,"N",null,null,null,null,null,null,null,2.27,1134.04,0,0]
["18793",128,126,"Petunia milliflora Vivini™ Blue","řízek",null,1,"N","A",null,null,null,null,null,null,10.63,1339.94,0,0]
["30488",128,126,"Petunia milliflora Vivini™ Blue Star","řízek",null,1,"N","A",null,null,null,null,null,null,10.63,1339.94,0,0]
["35736",128,126,"Petunia milliflora Vivini™ Burgundy Impr.","řízek",null,1,"N","A",null,null,null,null,null,null,10.63,1339.94,0,0]
["19657",128,126,"Petunia milliflora Vivini™ Pink","řízek",null,1,"N","A",null,null,null,null,null,null,10.63,1339.94,0,0]
["36377",128,126,"Petunia milliflora Vivini™ Purple Vein","řízek",null,1,"N","A",null,null,null,null,null,null,10.63,1339.94,0,0]
["31531",128,126,"Petunia milliflora Vivini™ Rose","řízek",null,1,"N","A",null,null,null,null,null,null,10.63,1339.94,0,0]
["31263",128,126,"Petunia milliflora Vivini™ Violet Vein","řízek",null,1,"N","A",null,null,null,null,null,null,10.63,1339.94,0,0]
["18795",128,126,"Petunia milliflora Vivini™ White","řízek",null,1,"N","A",null,null,null,null,null,null,10.63,1339.94,0,0]
["32887",128,126,"Petunia milliflora Vivini™ Yellow","řízek",null,1,"N","A",null,null,null,null,null,null,10.63,1339.94,0,0]
["11046",510,500,"Petunia multiflora Duo F1 Mix","semenáč",null,1,"N",null,null,null,null,null,null,null,2.41,1205.22,0,0]
["37221",288,284,"Petunia x hybrida E3 Easy Wave® F1 Blue","semenáč",null,1,"N",null,null,null,null,null,null,null,5.29,1501.18,0,0]
["37225",288,284,"Petunia x hybrida E3 Easy Wave® F1 Bright Red","semenáč",null,1,"N",null,null,null,null,null,null,null,5.29,1501.18,0,0]
["37222",288,284,"Petunia x hybrida E3 Easy Wave® F1 Coral","semenáč",null,1,"N",null,null,null,null,null,null,null,5.29,1501.18,0,0]
["37224",288,284,"Petunia x hybrida E3 Easy Wave® F1 Pink Vein","semenáč",null,1,"N",null,null,null,null,null,null,null,5.29,1501.18,0,0]
["37228",288,284,"Petunia x hybrida E3 Easy Wave® F1 Sky Blue","semenáč",null,1,"N",null,null,null,null,null,null,null,5.29,1501.18,0,0]
["37323",288,284,"Petunia x hybrida E3 Easy Wave® F1 White","semenáč",null,1,"N",null,null,null,null,null,null,null,5.29,1501.18,0,0]
["31118",288,284,"Petunia x hybrida E3 Easy Wave® F1 Yellow","semenáč",null,1,"N",null,null,null,null,null,null,null,5.29,1501.18,0,0]
["17393",288,284,"Petunia x hybrida Easy Wave® F1 Burgundy Star","semenáč",null,1,"N",null,null,null,null,null,null,null,5.29,1501.18,0,0]
["31050",288,284,"Petunia x hybrida Easy Wave® F1 Burgundy Velour","semenáč",null,1,"N",null,null,null,null,null,null,null,5.29,1501.18,0,0]
["36728",288,284,"Petunia x hybrida Easy Wave® F1 Combo Blue","semenáč",null,1,"N",null,null,null,null,null,null,null,5.29,1501.18,0,0]
["36805",288,284,"Petunia x hybrida Easy Wave® F1 Lavender Sky Blue","semenáč",null,1,"N",null,null,null,null,null,null,null,5.29,1501.18,0,0]
["18229",288,284,"Petunia x hybrida Easy Wave® F1 Neon Rose","semenáč",null,1,"N",null,null,null,null,null,null,null,5.29,1501.18,0,0]
["32503",288,284,"Petunia x hybrida Easy Wave® F1 Pink Passion","semenáč",null,1,"N",null,null,null,null,null,null,null,5.29,1501.18,0,0]
["36729",288,284,"Petunia x hybrida Easy Wave® F1 Plum Vein","semenáč",null,1,"N",null,null,null,null,null,null,null,5.29,1501.18,0,0]
["31529",288,284,"Petunia x hybrida Easy Wave® F1 Red Velour","semenáč",null,1,"N",null,null,null,null,null,null,null,5.29,1501.18,0,0]
["17399",288,284,"Petunia x hybrida Easy Wave® F1 Rosy Dawn","semenáč",null,1,"N",null,null,null,null,null,null,null,5.29,1501.18,0,0]
["32504",288,284,"Petunia x hybrida Easy Wave® F1 Silver","semenáč",null,1,"N",null,null,null,null,null,null,null,5.29,1501.18,0,0]
["35608",288,284,"Petunia x hybrida Easy Wave® F1 Violet","semenáč",null,1,"N",null,null,null,null,null,null,null,5.29,1501.18,0,0]
["17401",288,284,"Petunia x hybrida Easy Wave® F1 White","semenáč",null,1,"N",null,null,null,null,null,null,null,5.29,1501.18,0,0]
["36730",288,284,"Petunia x hybrida Shock Wave® Coral Crush","semenáč",null,1,"N",null,null,null,null,null,null,null,5.13,1456.6,0,0]
["35015",288,284,"Petunia x hybrida Shock Wave® Deep Purple","semenáč",null,1,"N",null,null,null,null,null,null,null,5.13,1456.6,0,0]
["17402",288,284,"Petunia x hybrida Shock Wave® Denim","semenáč",null,1,"N",null,null,null,null,null,null,null,5.13,1456.6,0,0]
["36166",288,284,"Petunia x hybrida Shock Wave® Tie Dye","semenáč",null,1,"N",null,null,null,null,null,null,null,5.13,1456.6,0,0]
["37252",288,284,"Petunia x hybrida Shock Wave® White","semenáč",null,1,"N",null,null,null,null,null,null,null,5.13,1456.6,0,{"$f":"R909*1.15","v":0}]
["11053",288,284,"Phlox drummondii Dolly Deep Rose","semenáč",null,4,"N",null,null,null,null,null,null,null,4.4800000000000004,1272.06,{"$f":"Q910*(J910+K910+L910+M910+N910+O910)","v":0},0]
["11055",288,284,"Phlox drummondii Dolly Light Blue","semenáč",null,4,"N",null,null,null,null,null,null,null,4.4800000000000004,1272.06,0,0]
["11060",288,284,"Phlox drummondii Dolly Mix","semenáč",null,4,"N",null,null,null,null,null,null,null,4.4800000000000004,1272.06,0,0]
["11056",288,284,"Phlox drummondii Dolly Purple","semenáč",null,4,"N",null,null,null,null,null,null,null,4.4800000000000004,1272.06,0,0]
["12647",128,126,"Plectranthus coleoides","řízek",null,1,"N",null,null,null,null,null,null,null,8.49,1069.48,0,0]
["19094",288,284,"Portulaca grandiflora Happy Hour MixMasters® Mix","semenáč",null,8,"N",null,null,null,null,null,null,null,3.42,970.37,0,0]
["19094",510,500,"Portulaca grandiflora Happy Hour MixMasters® Mix","semenáč",null,8,"N",null,null,null,null,null,null,null,2.46,1228.95,0,0]
["37317",180,178,"Portulaca oleracea Mega Pazzaz™ Dark Pink","řízek",null,1,"N","A",null,null,null,null,null,null,10.15,1807.35,0,0]
["37318",180,178,"Portulaca oleracea Mega Pazzaz™ Gold","řízek",null,1,"N","A",null,null,null,null,null,null,10.15,1807.35,0,0]
["37319",180,178,"Portulaca oleracea Mega Pazzaz™ Orange","řízek",null,1,"N","A",null,null,null,null,null,null,10.15,1807.35,0,0]
["42640",180,178,"Portulaca oleracea Mega Pazzaz™ Pink Twist","řízek","new",1,"N","A",null,null,null,null,null,null,10.15,1807.35,0,0]
["37320",180,178,"Portulaca oleracea Mega Pazzaz™ Purple","řízek",null,1,"N","A",null,null,null,null,null,null,10.15,1807.35,0,0]
["41466",180,178,"Portulaca oleracea Pazzaz Nano™ Candy Pink","řízek","new",1,"N","A",null,null,null,null,null,null,9.42,1677.39,0,0]
["41467",180,178,"Portulaca oleracea Pazzaz Nano™ Fuchsia Impr.","řízek","new",1,"N","A",null,null,null,null,null,null,9.42,1677.39,0,0]
["35224",180,178,"Portulaca oleracea Pazzaz Nano™ Hot Pink","řízek",null,1,"N","A",null,null,null,null,null,null,9.42,1677.39,0,0]
["35755",84,82,"Portulaca oleracea Pazzaz Nano™ MixMasters® Candy","řízek",null,3,"N","A",null,null,null,null,null,null,23.91,1960.45,0,0]
["35826",84,82,"Portulaca oleracea Pazzaz Nano™ MixMasters® Fire","řízek",null,3,"N","A",null,null,null,null,null,null,23.91,1960.45,0,0]
["35225",180,178,"Portulaca oleracea Pazzaz Nano™ Orange","řízek",null,1,"N","A",null,null,null,null,null,null,9.42,1677.39,0,0]
["36711",84,84,"Portulaca oleracea Pazzaz Nano™ Pink Twin","řízek",null,2,"N","A",null,null,null,null,null,null,15.96,1340.25,0,0]
["37253",180,178,"Portulaca oleracea Pazzaz Nano™ Purple","řízek",null,1,"N","A",null,null,null,null,null,null,9.42,1677.39,0,0]
["36719",84,84,"Portulaca oleracea Pazzaz Nano™ Sunset Twin","řízek",null,2,"N","A",null,null,null,null,null,null,15.96,1340.25,0,0]
["42884",180,178,"Portulaca oleracea Pazzaz Nano™ Tropical Punch","řízek","new",1,"N","A",null,null,null,null,null,null,9.42,1677.39,0,0]
["35226",180,178,"Portulaca oleracea Pazzaz Nano™ Yellow","řízek",null,1,"N","A",null,null,null,null,null,null,9.42,1677.39,0,0]
["41469",180,178,"Portulaca oleracea Pazzaz Nano™ Yellow Twist","řízek","new",1,"N","A",null,null,null,null,null,null,9.42,1677.39,0,0]
["12475",288,284,"Rhodochiton atrosanguineum Purple Bells","semenáč",null,1,"N",null,null,null,null,null,null,null,8.5500000000000007,2428.02,0,0]
["14579",288,284,"Rudbeckia hirta Prairie Sun","semenáč",null,2,"N",null,null,null,null,null,null,null,3.81,1082.33,0,0]
["11083",288,284,"Rudbeckia hirta Toto Gold","semenáč",null,2,"N",null,null,null,null,null,null,null,3.32,942.37,0,0]
["11088",288,284,"Salvia farinacea Midi Blue","semenáč",null,4,"N",null,null,null,null,null,null,null,3.12,886.39,0,0]
["32728",84,84,"Salvia farinacea Mystic Spires Blue","řízek",null,1,"N","A",null,null,null,null,null,null,13.35,1121,0,0]
["41564",84,84,"Salvia farinacea Mystic Spires Sky Blue","řízek","new",1,"N","A",null,null,null,null,null,null,13.35,1121,0,0]
["34723",84,84,"Salvia farinacea Mysty Blue","řízek",null,1,"N","A",null,null,null,null,null,null,13.83,1161.78,0,0]
["32558",128,126,"Salvia farinacea Sallyfun Deep Ocean","řízek",null,1,"N","A",null,null,null,null,null,null,11.67,1471.03,0,0]
["41470",128,126,"Salvia farinacea Sallyfun Pure White","řízek","new",1,"N","A",null,null,null,null,null,null,11.67,1471.03,0,0]
["35272",128,126,"Salvia farinacea Sallyfun Sky Blue","řízek",null,1,"N","A",null,null,null,null,null,null,11.67,1471.03,0,0]
["31694",84,84,"Salvia guaranitica Black & Bloom","řízek",null,1,"N","A",null,null,null,null,null,null,13.35,1121,0,0]
["36380",84,84,"Salvia guaranitica Purple & Bloom","řízek",null,1,"N","A",null,null,null,null,null,null,13.35,1121,0,0]
["16111",288,284,"Salvia splendens Mojave Red","semenáč",null,1,"N",null,null,null,null,null,null,null,2.57,728.8,0,0]
["16111",510,440,"Salvia splendens Mojave Red","semenáč",null,1,"N",null,null,null,null,null,null,null,2.0699999999999998,912.67,0,0]
["36569",84,84,"Salvia splendens Roman Red","řízek",null,1,"N","A",null,null,null,null,null,null,14.23,1195.21,0,0]
["11095",288,284,"Salvia splendens Turbo Red","semenáč",null,1,"N",null,null,null,null,null,null,null,2.48,703.92,0,0]
["11095",510,440,"Salvia splendens Turbo Red","semenáč",null,1,"N",null,null,null,null,null,null,null,1.92,843.61,0,0]
["13373",288,284,"Salvia splendens Vista Mix","semenáč",null,1,"N",null,null,null,null,null,null,null,2.71,770.27,0,0]
["13234",288,284,"Salvia splendens Vista Red","semenáč",null,1,"N",null,null,null,null,null,null,null,2.71,770.27,0,0]
["15664",180,178,"Sanvitalia speciosa Inca Yellow","řízek",null,1,"N","A",null,null,null,null,null,null,8.32,1480.51,0,0]
["18462",288,284,"Sanvitalia speciosa Million Suns Yellow","semenáč",null,4,"N",null,null,null,null,null,null,null,5.84,1659.8,0,0]
["15016",180,178,"Sanvitalia speciosa Safari Yellow","řízek",null,1,"N","A",null,null,null,null,null,null,8.32,1480.51,0,0]
["37254",180,178,"Sanvitalia speciosa Santiago Bright Yellow","řízek",null,1,"N","A",null,null,null,null,null,null,8.68,1545.49,0,0]
["31076",180,178,"Sanvitalia speciosa Santiago Great Yellow","řízek",null,1,"N","A",null,null,null,null,null,null,8.68,1545.49,0,0]
["38384",180,178,"Sanvitalia speciosa Sun Vitalia® Bright Yellow","řízek","new",1,"N","A",null,null,null,null,null,null,8.5,1513,0,0]
["35529",128,126,"Scaevola aemula Fancy Blue","řízek",null,1,"N","A",null,null,null,null,null,null,10.19,1284.29,0,0]
["35757",84,82,"Scaevola aemula Fancy MixMasters® Fantasy","řízek",null,3,"N","A",null,null,null,null,null,null,23.91,1960.45,0,0]
["35701",128,126,"Scaevola aemula Fancy Pink","řízek",null,1,"N","A",null,null,null,null,null,null,10.19,1284.29,0,0]
["42882",128,126,"Scaevola aemula Fancy Pink Impr.","řízek","new",1,"N","A",null,null,null,null,null,null,10.19,1284.29,0,0]
["35531",128,126,"Scaevola aemula Fancy White","řízek",null,1,"N","A",null,null,null,null,null,null,10.19,1284.29,0,0]
["14277",128,126,"Scaevola aemula Saphira Blue","řízek",null,1,"N","A",null,null,null,null,null,null,10.01,1261.29,0,0]
["37819",84,84,"Scaevola aemula Surdiva® Bavarian Mix","řízek",null,2,"N","A",null,null,null,null,null,null,16.899999999999999,1419.98,0,0]
["34593",128,126,"Scaevola aemula Surdiva® Deep Pink","řízek",null,1,"N","A",null,null,null,null,null,null,10.92,1375.36,0,0]
["34594",84,84,"Scaevola aemula Surdiva® Deep Violet Blue","řízek",null,2,"N","A",null,null,null,null,null,null,14.6,1226.79,0,0]
["34594",128,126,"Scaevola aemula Surdiva® Deep Violet Blue","řízek",null,1,"N","A",null,null,null,null,null,null,10.92,1375.36,0,0]
["37371",128,126,"Scaevola aemula Surdiva® Snow Blanket","řízek",null,1,"N","A",null,null,null,null,null,null,10.92,1375.36,0,0]
["13156",128,126,"Streptocarpus saxorum Blue Fountain","řízek",null,1,"N",null,null,null,null,null,null,null,12.63,1591.08,0,0]
["14568",180,178,"Sutera diffusus Baja White","řízek",null,1,"Y","A",null,null,null,null,null,null,7.15,1273.23,0,0]
["36910",180,178,"Sutera diffusus MegaCopa™ Blue","řízek",null,1,"Y","A",null,null,null,null,null,null,8.1999999999999993,1460.36,0,0]
["38042",84,82,"Sutera diffusus MegaCopa™ MixMasters® Venus","řízek",null,3,"N","A",null,null,null,null,null,null,18.77,1538.97,0,{"$f":"R973*1.15","v":0}]
["42856",180,178,"Sutera diffusus MegaCopa™ Pink","řízek","new",1,"Y","A",null,null,null,null,null,null,8.1999999999999993,1460.36,{"$f":"Q974*(J974+K974+L974+M974+N974+O974)","v":0},0]
["37164",180,178,"Sutera diffusus MegaCopa™ Pink Shine","řízek",null,1,"Y","A",null,null,null,null,null,null,8.1999999999999993,1460.36,0,0]
["41487",180,178,"Sutera diffusus MegaCopa™ Purple","řízek","new",1,"Y","A",null,null,null,null,null,null,8.1999999999999993,1460.36,0,0]
["32696",180,178,"Sutera diffusus MegaCopa™ Sky Blue","řízek",null,1,"Y","A",null,null,null,null,null,null,8.1999999999999993,1460.36,0,0]
["32699",180,178,"Sutera diffusus MegaCopa™ Versa White","řízek",null,1,"Y","A",null,null,null,null,null,null,8.1999999999999993,1460.36,0,0]
["32698",180,178,"Sutera diffusus MegaCopa™ White","řízek",null,1,"Y","A",null,null,null,null,null,null,8.1999999999999993,1460.36,0,0]
["37255",180,178,"Sutera diffusus Scopia® Compact Blue","řízek","new",1,"Y","A",null,null,null,null,null,null,7.88,1403.18,0,0]
["38054",180,178,"Sutera diffusus Scopia® Compact Pink Heart","řízek","new",1,"Y","A",null,null,null,null,null,null,7.88,1403.18,0,0]
["32527",180,178,"Sutera diffusus Scopia® Compact White","řízek",null,1,"Y","A",null,null,null,null,null,null,7.88,1403.18,0,0]
["36114",180,178,"Sutera diffusus Scopia® Double Lavender","řízek",null,1,"Y","A",null,null,null,null,null,null,9.73,1732.63,0,0]
["35716",180,178,"Sutera diffusus Scopia® Double Snowball","řízek",null,1,"Y","A",null,null,null,null,null,null,9.73,1732.63,0,0]
["20376",180,178,"Sutera diffusus Scopia® Gulliver Dynamic White","řízek",null,1,"Y","A",null,null,null,null,null,null,7.88,1403.18,0,0]
["32203",180,178,"Sutera diffusus Scopia® Gulliver Pink Heart","řízek",null,1,"Y","A",null,null,null,null,null,null,7.88,1403.18,0,0]
["17411",288,284,"Tagetes erecta Taishan® Gold","semenáč",null,1,"N",null,null,null,null,null,null,null,3.33,944.45,0,0]
["17411",510,440,"Tagetes erecta Taishan® Gold","semenáč",null,1,"N",null,null,null,null,null,null,null,2.68,1177.7,0,0]
["17413",288,284,"Tagetes erecta Taishan® Mix","semenáč",null,1,"N",null,null,null,null,null,null,null,3.33,944.45,0,0]
["17413",510,440,"Tagetes erecta Taishan® Mix","semenáč",null,1,"N",null,null,null,null,null,null,null,2.68,1177.7,0,0]
["17410",288,284,"Tagetes erecta Taishan® Orange","semenáč",null,1,"N",null,null,null,null,null,null,null,3.33,944.45,0,0]
["17410",510,440,"Tagetes erecta Taishan® Orange","semenáč",null,1,"N",null,null,null,null,null,null,null,2.68,1177.7,0,0]
["17412",288,284,"Tagetes erecta Taishan® Yellow","semenáč",null,1,"N",null,null,null,null,null,null,null,3.33,944.45,0,0]
["17412",510,440,"Tagetes erecta Taishan® Yellow","semenáč",null,1,"N",null,null,null,null,null,null,null,2.68,1177.7,0,0]
["11120",288,284,"Tagetes erecta Vanilla F1","semenáč",null,1,"N",null,null,null,null,null,null,null,5.24,1488.74,0,0]
["11120",510,440,"Tagetes erecta Vanilla F1","semenáč",null,1,"N",null,null,null,null,null,null,null,4.5599999999999996,2006.51,0,0]
["13047",288,284,"Tagetes patula nana Bonanza™ Bee","semenáč",null,1,"N",null,null,null,null,null,null,null,2.56,727.77,0,0]
["13047",510,440,"Tagetes patula nana Bonanza™ Bee","semenáč",null,1,"N",null,null,null,null,null,null,null,1.94,854.85,0,0]
["11141",288,284,"Tagetes patula nana Bonanza™ Bolero","semenáč",null,1,"N",null,null,null,null,null,null,null,2.56,727.77,0,0]
["11141",510,440,"Tagetes patula nana Bonanza™ Bolero","semenáč",null,1,"N",null,null,null,null,null,null,null,1.94,854.85,0,0]
["11146",288,284,"Tagetes patula nana Bonanza™ Deep Orange","semenáč",null,1,"N",null,null,null,null,null,null,null,2.56,727.77,0,0]
["11146",510,440,"Tagetes patula nana Bonanza™ Deep Orange","semenáč",null,1,"N",null,null,null,null,null,null,null,1.94,854.85,0,0]
["32907",288,284,"Tagetes patula nana Bonanza™ Fireball","semenáč",null,1,"N",null,null,null,null,null,null,null,2.56,727.77,0,0]
["32907",510,440,"Tagetes patula nana Bonanza™ Fireball","semenáč",null,1,"N",null,null,null,null,null,null,null,1.94,854.85,0,0]
["11142",288,284,"Tagetes patula nana Bonanza™ Flame","semenáč",null,1,"N",null,null,null,null,null,null,null,2.56,727.77,0,0]
["11142",510,440,"Tagetes patula nana Bonanza™ Flame","semenáč",null,1,"N",null,null,null,null,null,null,null,1.94,854.85,0,0]
["13046",288,284,"Tagetes patula nana Bonanza™ Gold","semenáč",null,1,"N",null,null,null,null,null,null,null,2.56,727.77,0,0]
["13046",510,440,"Tagetes patula nana Bonanza™ Gold","semenáč",null,1,"N",null,null,null,null,null,null,null,1.94,854.85,0,0]
["13048",288,284,"Tagetes patula nana Bonanza™ Mix","semenáč",null,1,"N",null,null,null,null,null,null,null,2.56,727.77,0,0]
["13048",510,440,"Tagetes patula nana Bonanza™ Mix","semenáč",null,1,"N",null,null,null,null,null,null,null,1.94,854.85,0,0]
["11147",288,284,"Tagetes patula nana Bonanza™ Yellow","semenáč",null,1,"N",null,null,null,null,null,null,null,2.56,727.77,0,0]
["11147",510,440,"Tagetes patula nana Bonanza™ Yellow","semenáč",null,1,"N",null,null,null,null,null,null,null,1.94,854.85,0,0]
["18048",288,284,"Tagetes patula nana Durango Bee","semenáč",null,1,"N",null,null,null,null,null,null,null,2.77,785.83,0,0]
["18049",288,284,"Tagetes patula nana Durango Bolero","semenáč",null,1,"N",null,null,null,null,null,null,null,2.77,785.83,0,0]
["18050",288,284,"Tagetes patula nana Durango Flame","semenáč",null,1,"N",null,null,null,null,null,null,null,2.77,785.83,0,0]
["11180",288,284,"Tagetes patula nana Durango Mix","semenáč",null,1,"N",null,null,null,null,null,null,null,2.77,785.83,0,0]
["18051",288,284,"Tagetes patula nana Durango Orange","semenáč",null,1,"N",null,null,null,null,null,null,null,2.77,785.83,0,0]
["15383",288,284,"Tagetes patula nana Durango Red","semenáč",null,1,"N",null,null,null,null,null,null,null,2.77,785.83,0,0]
["18052",288,284,"Tagetes patula nana Durango Yellow","semenáč",null,1,"N",null,null,null,null,null,null,null,2.77,785.83,0,0]
["18463",288,284,"Tagetes patula nana Durango Yellow Fire","semenáč",null,1,"N",null,null,null,null,null,null,null,2.77,785.83,0,0]
["36894",84,84,"Thunbergia alata SunEyes Orange Beauty","řízek",null,1,"Y","A",null,null,null,null,null,null,13.65,1146.76,0,0]
["36895",84,84,"Thunbergia alata SunEyes Red","řízek","new",1,"Y","A",null,null,null,null,null,null,13.65,1146.76,0,0]
["37448",84,84,"Thunbergia alata SunEyes Rose Sensation","řízek",null,1,"Y","A",null,null,null,null,null,null,13.65,1146.76,0,0]
["36896",84,84,"Thunbergia alata SunEyes Terracotta","řízek",null,1,"Y","A",null,null,null,null,null,null,13.65,1146.76,0,0]
["37449",84,84,"Thunbergia alata SunEyes White","řízek",null,1,"Y","A",null,null,null,null,null,null,13.65,1146.76,0,0]
["37450",84,84,"Thunbergia alata SunEyes Yellow Dark Eye","řízek",null,1,"Y","A",null,null,null,null,null,null,13.65,1146.76,0,0]
["36953",128,126,"Verbena peruviana Cadet™ Lavender Blue","řízek",null,1,"Y","A",null,null,null,null,null,null,10.02,1262.67,0,0]
["36954",128,126,"Verbena peruviana Cadet™ Pink Eye","řízek",null,1,"Y","A",null,null,null,null,null,null,10.02,1262.67,0,0]
["36955",128,126,"Verbena peruviana Cadet™ Red Eye","řízek",null,1,"Y","A",null,null,null,null,null,null,10.02,1262.67,0,0]
["36568",128,126,"Verbena peruviana Cadet™ Violet Blue","řízek",null,1,"Y","A",null,null,null,null,null,null,10.02,1262.67,0,0]
["36121",128,126,"Verbena peruviana Cadet™ White","řízek",null,1,"Y","A",null,null,null,null,null,null,10.02,1262.67,0,0]
["34283",128,126,"Verbena peruviana EnduraScape™ Blue","řízek",null,1,"Y","A",null,null,null,null,null,null,10.99,1384.56,0,0]
["37728",128,126,"Verbena peruviana EnduraScape™ Burgundy","řízek","new",1,"Y","A",null,null,null,null,null,null,10.99,1384.56,0,0]
["30612",128,126,"Verbena peruviana EnduraScape™ Hot Pink","řízek",null,1,"Y","A",null,null,null,null,null,null,10.99,1384.56,0,0]
["32675",128,126,"Verbena peruviana EnduraScape™ Magenta","řízek",null,1,"Y","A",null,null,null,null,null,null,10.99,1384.56,0,0]
["32676",128,126,"Verbena peruviana EnduraScape™ Pink Bicolour","řízek",null,1,"Y","A",null,null,null,null,null,null,10.99,1384.56,0,0]
["35659",128,126,"Verbena peruviana EnduraScape™ Pink Fizz","řízek",null,1,"Y","A",null,null,null,null,null,null,10.99,1384.56,0,{"$f":"R1037*1.15","v":0}]
["36957",128,126,"Verbena peruviana EnduraScape™ Purple","řízek",null,1,"Y","A",null,null,null,null,null,null,10.99,1384.56,{"$f":"Q1038*(J1038+K1038+L1038+M1038+N1038+O1038)","v":0},0]
["36958",128,126,"Verbena peruviana EnduraScape™ Red","řízek",null,1,"Y","A",null,null,null,null,null,null,10.99,1384.56,0,0]
["35660",128,126,"Verbena peruviana EnduraScape™ White","řízek",null,1,"Y","A",null,null,null,null,null,null,10.99,1384.56,0,0]
["36058",128,126,"Verbena peruviana Firehouse™ Grape","řízek",null,1,"Y","A",null,null,null,null,null,null,10.5,1323.38,0,0]
["36059",128,126,"Verbena peruviana Firehouse™ Lavender Blue","řízek",null,1,"Y","A",null,null,null,null,null,null,10.5,1323.38,0,0]
["37349",84,82,"Verbena peruviana Firehouse™ MixMasters® Dutch Fire","řízek",null,3,"Y","A",null,null,null,null,null,null,22.87,1875.43,0,0]
["37350",84,82,"Verbena peruviana Firehouse™ MixMasters® Pink Fire","řízek",null,3,"Y","A",null,null,null,null,null,null,22.87,1875.43,0,0]
["37351",84,82,"Verbena peruviana Firehouse™ MixMasters® Purple Fire","řízek",null,3,"Y","A",null,null,null,null,null,null,22.87,1875.43,0,0]
["41488",128,126,"Verbena peruviana Firehouse™ Pink Impr.","řízek","new",1,"Y","A",null,null,null,null,null,null,10.5,1323.38,0,0]
["36959",128,126,"Verbena peruviana Firehouse™ Purple Fizz","řízek",null,1,"Y","A",null,null,null,null,null,null,10.5,1323.38,0,0]
["36064",128,126,"Verbena peruviana Firehouse™ Red","řízek",null,1,"Y","A",null,null,null,null,null,null,10.5,1323.38,0,0]
["36962",128,126,"Verbena peruviana Firehouse™ Violet Eye","řízek",null,1,"Y","A",null,null,null,null,null,null,10.5,1323.38,0,0]
["37731",128,126,"Verbena peruviana Firehouse™ White Impr.","řízek","new",1,"Y","A",null,null,null,null,null,null,10.5,1323.38,0,0]
["36987",128,126,"Verbena peruviana Lobster Fest","řízek",null,1,"Y","A",null,null,null,null,null,null,10.57,1331.2,0,0]
["36298",128,126,"Verbena peruviana Venturi® Bicolour Pink","řízek",null,1,"Y","A",null,null,null,null,null,null,10.14,1277.3900000000001,0,0]
["36299",128,126,"Verbena peruviana Venturi® Bicolour Purple","řízek",null,1,"Y","A",null,null,null,null,null,null,10.14,1277.3900000000001,0,0]
["35738",128,126,"Verbena peruviana Venturi® Cherry Eye","řízek",null,1,"Y","A",null,null,null,null,null,null,10.14,1277.3900000000001,0,0]
["31698",84,82,"Verbena peruviana Venturi® MixMasters® Grand Prix","řízek",null,3,"Y","A",null,null,null,null,null,null,22.87,1875.43,0,0]
["20178",84,82,"Verbena peruviana Venturi® MixMasters® Monaco","řízek",null,3,"Y","A",null,null,null,null,null,null,22.87,1875.43,0,0]
["20179",84,82,"Verbena peruviana Venturi® MixMasters® Pit Stop","řízek",null,3,"Y","A",null,null,null,null,null,null,22.87,1875.43,0,0]
["17655",128,126,"Verbena peruviana Venturi® Neon Pink","řízek",null,1,"Y","A",null,null,null,null,null,null,10.14,1277.3900000000001,0,0]
["17074",128,126,"Verbena peruviana Venturi® Peach","řízek",null,1,"Y","A",null,null,null,null,null,null,10.14,1277.3900000000001,0,0]
["17654",128,126,"Verbena peruviana Venturi® Pink","řízek",null,1,"Y","A",null,null,null,null,null,null,10.14,1277.3900000000001,0,0]
["20654",128,126,"Verbena peruviana Venturi® Purple","řízek",null,1,"Y","A",null,null,null,null,null,null,10.14,1277.3900000000001,0,0]
["17075",128,126,"Verbena peruviana Venturi® Red","řízek",null,1,"Y","A",null,null,null,null,null,null,10.14,1277.3900000000001,0,0]
["17077",128,126,"Verbena peruviana Venturi® Rose","řízek",null,1,"Y","A",null,null,null,null,null,null,10.14,1277.3900000000001,0,0]
["17656",128,126,"Verbena peruviana Venturi® Scarlet","řízek",null,1,"Y","A",null,null,null,null,null,null,10.14,1277.3900000000001,0,0]
["17080",128,126,"Verbena peruviana Venturi® White","řízek",null,1,"Y","A",null,null,null,null,null,null,10.14,1277.3900000000001,0,0]
["18465",510,480,"Verbena x hybrida Obsession® Blue Eye","semenáč",null,2,"N",null,null,null,null,null,null,null,2.77,1330,0,0]
["13232",288,284,"Verbena x hybrida Obsession® Mix","semenáč",null,2,"N",null,null,null,null,null,null,null,3.41,969.33,0,0]
["13232",510,480,"Verbena x hybrida Obsession® Mix","semenáč",null,2,"N",null,null,null,null,null,null,null,2.77,1330,0,0]
["18468",510,480,"Verbena x hybrida Obsession® Pink","semenáč",null,2,"N",null,null,null,null,null,null,null,2.77,1330,0,0]
["18469",510,480,"Verbena x hybrida Obsession® Red","semenáč",null,2,"N",null,null,null,null,null,null,null,2.77,1330,0,0]
["13230",510,480,"Verbena x hybrida Obsession® Scarlet","semenáč",null,2,"N",null,null,null,null,null,null,null,2.77,1330,0,0]
["35200",510,480,"Verbena x hybrida Obsession® Twister Purple","semenáč",null,2,"N",null,null,null,null,null,null,null,3.3,1585.82,0,0]
["35201",510,480,"Verbena x hybrida Obsession® Twister Red","semenáč",null,2,"N",null,null,null,null,null,null,null,3.3,1585.82,0,0]
["18474",510,480,"Verbena x hybrida Obsession® White","semenáč",null,2,"N",null,null,null,null,null,null,null,2.77,1330,0,0]
["15954",288,284,"Verbena x hybrida Tuscany Mix","semenáč",null,2,"N",null,null,null,null,null,null,null,3.39,964.14,0,0]
["15954",510,480,"Verbena x hybrida Tuscany Mix","semenáč",null,2,"N",null,null,null,null,null,null,null,2.91,1398.34,0,0]
["15251",288,284,"Zinnia angustifolia Profusion Fire","semenáč",null,1,"N",null,null,null,null,null,null,null,5.1100000000000003,1450.38,0,0]
["11259",288,284,"Zinnia angustifolia Profusion Cherry","semenáč",null,1,"N",null,null,null,null,null,null,null,5.1100000000000003,1450.38,0,0]
["36640",288,284,"Zinnia angustifolia Profusion Cherry Bicolour","semenáč",null,1,"N",null,null,null,null,null,null,null,5.1100000000000003,1450.38,0,0]
["20506",288,284,"Zinnia angustifolia Profusion Mix","semenáč",null,1,"N",null,null,null,null,null,null,null,5.1100000000000003,1450.38,0,0]
["34965",288,284,"Zinnia angustifolia Profusion Red","semenáč",null,1,"N",null,null,null,null,null,null,null,5.1100000000000003,1450.38,0,0]
["38334",288,284,"Zinnia angustifolia Profusion Red Yellow Bicolour","semenáč",null,1,"N",null,null,null,null,null,null,null,5.1100000000000003,1450.38,0,0]
["13315",288,284,"Zinnia angustifolia Profusion White","semenáč",null,1,"N",null,null,null,null,null,null,null,5.1100000000000003,1450.38,0,0]
["16951",288,284,"Zinnia angustifolia Profusion Yellow","semenáč",null,1,"N",null,null,null,null,null,null,null,5.1100000000000003,1450.38,0,0]
["18915",288,284,"Zinnia angustifolia Zahara™ Raspberry Lemonade Mix","semenáč",null,1,"N",null,null,null,null,null,null,null,5.1100000000000003,1450.38,0,0]
["30182",288,284,"Zinnia angustifolia Zahara™ Sunburst","semenáč",null,1,"N",null,null,null,null,null,null,null,5.1100000000000003,1450.38,0,0]
["37504",288,284,"Zinnia elegans Zen Mix","semenáč",null,1,"N",null,null,null,null,null,null,null,6.58,1869.22,0,0]
["36167",288,284,"Zinnia elegans Zen Orange","semenáč",null,1,"N",null,null,null,null,null,null,null,6.58,1869.22,0,0]
["36168",288,284,"Zinnia elegans Zen Red","semenáč",null,1,"N",null,null,null,null,null,null,null,6.58,1869.22,0,0]
["36169",288,284,"Zinnia elegans Zen Rose","semenáč",null,1,"N",null,null,null,null,null,null,null,6.58,1869.22,0,0]
["37159",288,284,"Zinnia elegans Zen White","semenáč",null,1,"N",null,null,null,null,null,null,null,6.58,1869.22,0,0]
["36170",288,284,"Zinnia elegans Zen Yellow","semenáč",null,1,"N",null,null,null,null,null,null,null,6.58,1869.22,0,0]